Workbook

Sheet Rates
A1: Effective Date | B1: Ready | C1: Fixed Rate | D1: Inflation Rate
A2: 1998-09-01 | B2: TRUE | C2: 0.034 | D2: 0.0062 | E2: FALSE | F2: <-- display redemption value (enter TRUE or FALSE)
A3: 1998-11-01 | B3: TRUE | C3: 0.033 | D3: 0.0086
A4: 1999-05-01 | B4: TRUE | C4: 0.033 | D4: 0.0086
A5: 1999-11-01 | B5: TRUE | C5: 0.034 | D5: 0.0176
A6: 2000-05-01 | B6: TRUE | C6: 0.036 | D6: 0.0191
A7: 2000-11-01 | B7: TRUE | C7: 0.034 | D7: 0.0152
A8: 2001-05-01 | B8: TRUE | C8: 0.03 | D8: 0.0144
A9: 2001-11-01 | B9: TRUE | C9: 0.02 | D9: 0.0119
A10: 2002-05-01 | B10: TRUE | C10: 0.02 | D10: 0.0028
A11: 2002-11-01 | B11: TRUE | C11: 0.016 | D11: 0.0123
A12: 2003-05-01 | B12: TRUE | C12: 0.011 | D12: 0.0177
A13: 2003-11-01 | B13: TRUE | C13: 0.011 | D13: 0.0054
A14: 2004-05-01 | B14: TRUE | C14: 0.01 | D14: 0.0119
A15: 2004-11-01 | B15: TRUE | C15: 0.01 | D15: 0.0133
A16: 2005-05-01 | B16: TRUE | C16: 0.012 | D16: 0.0179
A17: 2005-11-01 | B17: TRUE | C17: 0.01 | D17: 0.0285
A18: 2006-05-01 | B18: TRUE | C18: 0.014 | D18: 0.005
A19: 2006-11-01 | B19: TRUE | C19: 0.014 | D19: 0.0155
A20: 2007-05-01 | B20: TRUE | C20: 0.013 | D20: 0.0121
A21: 2007-11-01 | B21: TRUE | C21: 0.012 | D21: 0.0153
A22: 2008-05-01 | B22: TRUE | C22: 0 | D22: 0.0242
A23: 2008-11-01 | B23: TRUE | C23: 0.007 | D23: 0.0246
A24: 2009-05-01 | B24: TRUE | C24: 0.001 | D24: -0.0278
A25: 2009-11-01 | B25: TRUE | C25: 0.003 | D25: 0.0153
A26: 2010-05-01 | B26: TRUE | C26: 0.002 | D26: 0.0077
A27: 2010-11-01 | B27: TRUE | C27: 0 | D27: 0.0037
A28: 2011-05-01 | B28: TRUE | C28: 0 | D28: 0.023
A29: 2011-11-01 | B29: TRUE | C29: 0 | D29: 0.0153
A30: 2012-05-01 | B30: TRUE | C30: 0 | D30: 0.011
A31: 2012-11-01 | B31: TRUE | C31: 0 | D31: 0.0088
A32: 2013-05-01 | B32: TRUE | C32: 0 | D32: 0.0059
A33: 2013-11-01 | B33: TRUE | C33: 0.002 | D33: 0.0059
A34: 2014-05-01 | B34: TRUE | C34: 0.001 | D34: 0.0092
A35: 2014-11-01 | B35: TRUE | C35: 0 | D35: 0.0074
A36: 2015-05-01 | B36: TRUE | C36: 0 | D36: -0.008
A37: 2015-11-01 | B37: TRUE | C37: 0.001 | D37: 0.0077
A38: 2016-05-01 | B38: TRUE | C38: 0.001 | D38: 0.0008
A39: 2016-11-01 | B39: TRUE | C39: 0 | D39: 0.0138
A40: 2017-05-01 | B40: TRUE | C40: 0 | D40: 0.0098
A41: 2017-11-01 | B41: TRUE | C41: 0.001 | D41: 0.0124
A42: 2018-05-01 | B42: TRUE | C42: 0.003 | D42: 0.0111
A43: 2018-11-01 | B43: TRUE | C43: 0.005 | D43: 0.0116
A44: 2019-05-01 | B44: TRUE | C44: 0.005 | D44: 0.007
A45: 2019-11-01 | B45: TRUE | C45: 0.002 | D45: 0.0101
A46: 2020-05-01 | B46: TRUE | C46: 0 | D46: 0.0053
A47: 2020-11-01 | B47: TRUE | C47: 0 | D47: 0.0084
A48: 2021-05-01 | B48: TRUE | C48: 0 | D48: 0.0177
A49: 2021-11-01 | B49: TRUE | C49: 0 | D49: 0.0356
A50: 2022-05-01 | B50: TRUE | C50: 0 | D50: 0.0481
A51: 2022-11-01 | B51: TRUE | C51: 0.004 | D51: 0.0324
A52: 2023-05-01 | B52: TRUE | C52: 0.009 | D52: 0.0169
A53: 2023-11-01 | B53: TRUE | C53: 0.013 | D53: 0.0197
A54: 2024-05-01 | B54: TRUE | C54: 0.013 | D54: 0.0148
A55: 2024-11-01 | B55: TRUE | C55: 0.012 | D55: 0.0095
A56: 2025-05-01 | B56: TRUE | C56: 0.011 | D56: 0.0143
A57: 2025-11-01 | B57: FALSE | C57: 0 | D57: 0 | E57: <-- Enter TRUE, Fixed Rate, & Inflation Rate when known.
A58: 2026-05-01 | B58: FALSE | C58: 0 | D58: 0
A59: 2026-11-01 | B59: FALSE | C59: 0 | D59: 0
A60: 2027-05-01 | B60: FALSE | C60: 0 | D60: 0
A61: 2027-11-01 | B61: FALSE | C61: 0 | D61: 0 | E61: <-- If expand beyond this row, redefine rate_tbl range.
E62: (Formulas / Name Manager in Excel 365)

Sheet Portfolio
B1: =IF(disp_redemp, "Redemption", "Full")& " Value" -> Full Value | C1: 2025 | D1: =DATE($C$1-1,12,1) -> 2024-12-01 | E1: =DATE($C$1,1,1) -> 2025-01-01 | F1: =DATE($C$1,2,1) -> 2025-02-01 | G1: =DATE($C$1,3,1) -> 2025-03-01 | H1: =DATE($C$1,4,1) -> 2025-04-01 | I1: =DATE($C$1,5,1) -> 2025-05-01 | J1: =DATE($C$1,6,1) -> 2025-06-01 | K1: =DATE($C$1,7,1) -> 2025-07-01 | L1: =DATE($C$1,8,1) -> 2025-08-01 | M1: =DATE($C$1,9,1) -> 2025-09-01 | N1: =DATE($C$1,10,1) -> 2025-10-01 | O1: =DATE($C$1,11,1) -> 2025-11-01 | P1: =DATE($C$1,12,1) -> 2025-12-01 | Q1: =DATE($C$1+1,1,1) -> 2026-01-01 | R1: Click for Value Web Page | S1: Dec vs Dec | T1: Jan vs Jan
B2: =SUM(B$5:B$1000) -> 550000 | D2: =SUM(D$5:D$1000) -> 1041912 | E2: =SUM(E$5:E$1000) -> 1044860 | F2: 1047824 | G2: 1050808 | H2: 1053744 | I2: 1066668 | J2: 1070444 | K2: 1074272 | L2: 1078092 | M2: 1081912 | N2: 1085784 | O2: 1089708 | P2: =SUM(P$5:P$1000) -> 1089964 | Q2: 1090224 | R2: Total Value | S2: =SUM(S$5:S$1000) -> 38052 | T2: =SUM(T$5:T$1000) -> 35364
A3: Purchase | D3: =D$2-SUMIF(D$5:D$1000,">0",$B$5:$B$1000) -> 501912 | E3: =E$2-SUMIF(E$5:E$1000,">0",$B$5:$B$1000) -> 504860 | F3: 507824 | G3: 510808 | H3: 513744 | I3: 516668 | J3: 520444 | K3: 524272 | L3: 528092 | M3: 531912 | N3: 535784 | O3: 539708 | P3: =P$2-SUMIF(P$5:P$1000,">0",$B$5:$B$1000) -> 539964 | Q3: 540224 | R3: Total Interest
A4: Date | B4: Amount | C4: Fixed | E4: =E$3-D$3 -> 2948 | F4: =F$3-E$3 -> 2964 | G4: 2984 | H4: 2936 | I4: 2924 | J4: 3776 | K4: 3828 | L4: 3820 | M4: 3820 | N4: 3872 | O4: 3924 | P4: 256 | Q4: 260 | R4: Month's Interest
A5: 1998-09-01 | B5: 10000 | C5: =IF(ISNUMBER($A5),VLOOKUP($A5,rate_tbl,3,TRUE),"") -> 0.034 | D5: 47112 | E5: 47360 | F5: 47612 | G5: 47864 | H5: 48076 | I5: 48284 | J5: 48496 | K5: 48712 | L5: 48924 | M5: 49140 | N5: 49396 | O5: 49652 | P5: 49908 | Q5: 50168 | R5: 09-1998 history | S5: =IF(ISNUMBER(P5), P5-MAX($B5,D5),0) -> 2796 | T5: 2808
A6: 1998-11-01 | B6: 10000 | C6: 0.033 | D6: 45892 | E6: 46092 | F6: 46288 | G6: 46488 | H6: 46688 | I6: 46892 | J6: 47132 | K6: 47372 | L6: 47616 | M6: 47856 | N6: 48104 | O6: 48348 | P6: 48348 | Q6: 48348 | R6: 11-1998 history | S6: 2456 | T6: 2256
A7: 1999-05-01 | B7: 10000 | C7: 0.033 | D7: 44748 | E7: 44940 | F7: 45136 | G7: 45328 | H7: 45524 | I7: 45720 | J7: 45952 | K7: 46188 | L7: 46424 | M7: 46660 | N7: 46900 | O7: 47140 | P7: 47140 | Q7: 47140 | R7: 05-1999 history | S7: 2392 | T7: 2200
A8: 1999-11-01 | B8: 10000 | C8: 0.034 | D8: 44668 | E8: 44864 | F8: 45060 | G8: 45260 | H8: 45456 | I8: 45656 | J8: 45892 | K8: 46132 | L8: 46372 | M8: 46612 | N8: 46852 | O8: 47096 | P8: 47096 | Q8: 47096 | R8: 11-1999 history | S8: 2428 | T8: 2232
A9: 2000-05-01 | B9: 10000 | C9: 0.036 | D9: 45272 | E9: 45480 | F9: 45688 | G9: 45896 | H9: 46104 | I9: 46316 | J9: 46564 | K9: 46812 | L9: 47064 | M9: 47316 | N9: 47568 | O9: 47824 | P9: 47824 | Q9: 47824 | R9: 05-2000 history | S9: 2552 | T9: 2344
A10: 2000-11-01 | B10: 10000 | C10: 0.034 | D10: 41664 | E10: 41844 | F10: 42028 | G10: 42212 | H10: 42400 | I10: 42584 | J10: 42804 | K10: 43028 | L10: 43252 | M10: 43476 | N10: 43700 | O10: 43928 | P10: 43928 | Q10: 43928 | R10: 11-2000 history | S10: 2264 | T10: 2084
A11: 2001-05-01 | B11: 10000 | C11: 0.03 | D11: 36836 | E11: 36988 | F11: 37136 | G11: 37288 | H11: 37440 | I11: 37592 | J11: 37776 | K11: 37960 | L11: 38144 | M11: 38328 | N11: 38512 | O11: 38700 | P11: 38700 | Q11: 38700 | R11: 05-2001 history | S11: =IF(ISNUMBER(P11), P11-MAX($B11,D11),0) -> 1864 | T11: =IF(ISNUMBER(Q11), Q11-MAX($B11,E11),0) -> 1712
A12: 2001-11-01 | B12: 10000 | C12: 0.02 | D12: 28628 | E12: 28720 | F12: 28816 | G12: 28908 | H12: 29000 | I12: 29096 | J12: 29212 | K12: 29332 | L12: 29448 | M12: 29568 | N12: 29688 | O12: 29808 | P12: 29808 | Q12: 29808 | R12: 11-2001 history | S12: 1180 | T12: 1088
A13: 2002-05-01 | B13: 10000 | C13: 0.02 | D13: 28016 | E13: 28104 | F13: 28196 | G13: 28288 | H13: 28380 | I13: 28472 | J13: 28588 | K13: 28704 | L13: 28816 | M13: 28936 | N13: 29052 | O13: 29168 | P13: 29168 | Q13: 29168 | R13: 05-2002 history | S13: 1152 | T13: 1064
A14: 2002-11-01 | B14: 10000 | C14: 0.016 | D14: 25396 | E14: 25472 | F14: 25544 | G14: 25620 | H14: 25696 | I14: 25768 | J14: 25864 | K14: 25960 | L14: 26056 | M14: 26152 | N14: 26248 | O14: 26344 | P14: 26344 | Q14: 26344 | R14: 11-2002 history | S14: 948 | T14: 872
A15: 2003-05-01 | B15: 10000 | C15: 0.011 | D15: 22492 | E15: 22548 | F15: 22604 | G15: 22660 | H15: 22716 | I15: 22772 | J15: 22848 | K15: 22924 | L15: 22996 | M15: 23072 | N15: 23148 | O15: 23224 | P15: 23224 | Q15: 23224 | R15: 05-2003 history | S15: 732 | T15: 676
A16: 2003-11-01 | B16: 10000 | C16: 0.011 | D16: 21944 | E16: 21996 | F16: 22052 | G16: 22108 | H16: 22164 | I16: 22216 | J16: 22288 | K16: 22364 | L16: 22436 | M16: 22508 | N16: 22584 | O16: 22660 | P16: 22660 | Q16: 22660 | R16: 11-2003 history | S16: 716 | T16: 664
A17: 2004-05-01 | B17: 10000 | C17: 0.01 | D17: 21328 | E17: 21380 | F17: 21432 | G17: 21480 | H17: 21532 | I17: 21584 | J17: 21652 | K17: 21724 | L17: 21792 | M17: 21860 | N17: 21932 | O17: 22000 | P17: 22000 | Q17: 22000 | R17: 05-2004 history | S17: 672 | T17: 620
A18: 2004-11-01 | B18: 10000 | C18: 0.01 | D18: 20944 | E18: 20992 | F18: 21044 | G18: 21096 | H18: 21144 | I18: 21196 | J18: 21264 | K18: 21332 | L18: 21400 | M18: 21468 | N18: 21536 | O18: 21608 | P18: 21608 | Q18: 21608 | R18: 11-2004 history | S18: 664 | T18: 616
A19: 2005-05-01 | B19: 10000 | C19: 0.012 | D19: 21348 | E19: 21400 | F19: 21456 | G19: 21512 | H19: 21568 | I19: 21624 | J19: 21696 | K19: 21772 | L19: 21844 | M19: 21916 | N19: 21992 | O19: 22064 | P19: 22064 | Q19: 22064 | R19: 05-2005 history | S19: 716 | T19: 664
A20: 2005-11-01 | B20: 10000 | C20: 0.01 | D20: 20108 | E20: 20156 | F20: 20204 | G20: 20256 | H20: 20304 | I20: 20352 | J20: 20416 | K20: 20484 | L20: 20548 | M20: 20612 | N20: 20680 | O20: 20744 | P20: 20744 | Q20: 20744 | R20: 11-2005 history | S20: 636 | T20: 588
A21: 2006-05-01 | B21: 10000 | C21: 0.014 | D21: 20840 | E21: 20900 | F21: 20956 | G21: 21012 | H21: 21072 | I21: 21128 | J21: 21204 | K21: 21276 | L21: 21352 | M21: 21428 | N21: 21504 | O21: 21580 | P21: 21580 | Q21: 21580 | R21: 05-2006 history | S21: 740 | T21: 680
A22: 2006-11-01 | B22: 10000 | C22: 0.014 | D22: 20632 | E22: 20688 | F22: 20744 | G22: 20804 | H22: 20860 | I22: 20916 | J22: 20988 | K22: 21064 | L22: 21140 | M22: 21212 | N22: 21288 | O22: 21364 | P22: 21364 | Q22: 21364 | R22: 11-2006 history | S22: 732 | T22: 676
A23: 2007-05-01 | B23: 10000 | C23: 0.013 | D23: 19820 | E23: 19872 | F23: 19928 | G23: 19980 | H23: 20032 | I23: 20084 | J23: 20152 | K23: 20224 | L23: 20292 | M23: 20364 | N23: 20432 | O23: 20504 | P23: 20504 | Q23: 20504 | R23: 05-2007 history | S23: 684 | T23: 632
A24: 2007-11-01 | B24: 10000 | C24: 0.012 | D24: 19152 | E24: 19204 | F24: 19252 | G24: 19300 | H24: 19352 | I24: 19400 | J24: 19464 | K24: 19532 | L24: 19596 | M24: 19664 | N24: 19728 | O24: 19796 | P24: 19796 | Q24: 19796 | R24: 11-2007 history | S24: 644 | T24: 592
A25: 2008-05-01 | B25: 10000 | C25: 0 | D25: 15568 | E25: 15592 | F25: 15616 | G25: 15644 | H25: 15668 | I25: 15692 | J25: 15728 | K25: 15768 | L25: 15804 | M25: 15840 | N25: 15880 | O25: 15916 | P25: 15916 | Q25: 15916 | R25: 05-2008 history | S25: 348 | T25: 324
A26: 2008-11-01 | B26: 10000 | C26: 0.007 | D26: 16884 | E26: 16920 | F26: 16956 | G26: 16996 | H26: 17032 | I26: 17068 | J26: 17120 | K26: 17168 | L26: 17220 | M26: 17272 | N26: 17320 | O26: 17372 | P26: 17372 | Q26: 17372 | R26: 11-2008 history | S26: 488 | T26: 452
A27: 2009-05-01 | B27: 10000 | C27: 0.001 | D27: 15060 | E27: 15084 | F27: 15112 | G27: 15136 | H27: 15160 | I27: 15188 | J27: 15224 | K27: 15264 | L27: 15300 | M27: 15336 | N27: 15376 | O27: 15412 | P27: 15412 | Q27: 15412 | R27: 05-2009 history | S27: 352 | T27: 328
A28: 2009-11-01 | B28: 10000 | C28: 0.003 | D28: 15476 | E28: 15504 | F28: 15532 | G28: 15560 | H28: 15588 | I28: 15616 | J28: 15656 | K28: 15696 | L28: 15740 | M28: 15780 | N28: 15820 | O28: 15864 | P28: 15864 | Q28: 15864 | R28: 11-2009 history | S28: 388 | T28: 360
A29: 2010-05-01 | B29: 10000 | C29: 0.002 | D29: 15028 | E29: 15052 | F29: 15080 | G29: 15104 | H29: 15132 | I29: 15156 | J29: 15196 | K29: 15232 | L29: 15272 | M29: 15312 | N29: 15348 | O29: 15388 | P29: 15388 | Q29: 15388 | R29: 05-2010 history | S29: 360 | T29: 336
A30: 2010-11-01 | B30: 10000 | C30: 0 | D30: 14496 | E30: 14516 | F30: 14540 | G30: 14564 | H30: 14588 | I30: 14608 | J30: 14644 | K30: 14676 | L30: 14712 | M30: 14748 | N30: 14780 | O30: 14816 | P30: 14816 | Q30: 14816 | R30: 11-2010 history | S30: 320 | T30: 300
A31: 2011-05-01 | B31: 10000 | C31: 0 | D31: 14452 | E31: 14472 | F31: 14496 | G31: 14520 | H31: 14544 | I31: 14564 | J31: 14600 | K31: 14632 | L31: 14668 | M31: 14704 | N31: 14736 | O31: 14772 | P31: 14772 | Q31: 14772 | R31: 05-2011 history | S31: 320 | T31: 300
A32: 2011-11-01 | B32: 10000 | C32: 0 | D32: 14116 | E32: 14136 | F32: 14160 | G32: 14180 | H32: 14204 | I32: 14224 | J32: 14256 | K32: 14292 | L32: 14324 | M32: 14360 | N32: 14392 | O32: 14428 | P32: 14428 | Q32: 14428 | R32: 11-2011 history | S32: 312 | T32: 292
A33: 2012-05-01 | B33: 10000 | C33: 0 | D33: 13908 | E33: 13932 | F33: 13952 | G33: 13976 | H33: 13996 | I33: 14020 | J33: 14052 | K33: 14088 | L33: 14120 | M33: 14152 | N33: 14188 | O33: 14220 | P33: 14220 | Q33: 14220 | R33: 05-2012 history | S33: 312 | T33: 288
A34: 2012-11-01 | B34: 10000 | C34: 0 | D34: 13744 | E34: 13768 | F34: 13788 | G34: 13812 | H34: 13832 | I34: 13856 | J34: 13888 | K34: 13920 | L34: 13956 | M34: 13988 | N34: 14020 | O34: 14056 | P34: 14056 | Q34: 14056 | R34: 11-2012 history | S34: 312 | T34: 288
A35: 2013-05-01 | B35: 10000 | C35: 0 | D35: 13644 | E35: 13668 | F35: 13688 | G35: 13712 | H35: 13732 | I35: 13752 | J35: 13784 | K35: 13816 | L35: 13848 | M35: 13884 | N35: 13916 | O35: 13948 | P35: 13948 | Q35: 13948 | R35: 05-2013 history | S35: 304 | T35: 280
A36: 2013-11-01 | B36: 10000 | C36: 0.002 | D36: 13840 | E36: 13864 | F36: 13888 | G36: 13912 | H36: 13936 | I36: 13960 | J36: 13996 | K36: 14032 | L36: 14068 | M36: 14104 | N36: 14136 | O36: 14172 | P36: 14172 | Q36: 14172 | R36: 11-2013 history | S36: 332 | T36: 308
A37: 2014-05-01 | B37: 10000 | C37: 0.001 | D37: 13608 | E37: 13628 | F37: 13652 | G37: 13676 | H37: 13696 | I37: 13720 | J37: 13752 | K37: 13788 | L37: 13820 | M37: 13856 | N37: 13888 | O37: 13924 | P37: 13924 | Q37: 13924 | R37: 05-2014 history | S37: 316 | T37: 296
A38: 2014-11-01 | B38: 10000 | C38: 0 | D38: 13348 | E38: 13372 | F38: 13392 | G38: 13412 | H38: 13432 | I38: 13456 | J38: 13488 | K38: 13520 | L38: 13552 | M38: 13584 | N38: 13616 | O38: 13648 | P38: 13648 | Q38: 13648 | R38: 11-2014 history | S38: 300 | T38: 276
A39: 2015-05-01 | B39: 10000 | C39: 0 | D39: 13252 | E39: 13272 | F39: 13296 | G39: 13316 | H39: 13336 | I39: 13356 | J39: 13388 | K39: 13420 | L39: 13452 | M39: 13484 | N39: 13516 | O39: 13548 | P39: 13548 | Q39: 13548 | R39: 05-2015 history | S39: 296 | T39: 276
A40: 2015-11-01 | B40: 10000 | C40: 0.001 | D40: 13364 | E40: 13384 | F40: 13408 | G40: 13428 | H40: 13452 | I40: 13472 | J40: 13504 | K40: 13540 | L40: 13572 | M40: 13604 | N40: 13636 | O40: 13672 | P40: 13672 | Q40: 13672 | R40: 11-2015 history | S40: 308 | T40: 288
A41: 2016-05-01 | B41: 10000 | C41: 0.001 | D41: 13260 | E41: 13284 | F41: 13308 | G41: 13328 | H41: 13352 | I41: 13372 | J41: 13404 | K41: 13436 | L41: 13472 | M41: 13504 | N41: 13536 | O41: 13568 | P41: 13568 | Q41: 13568 | R41: 05-2016 history | S41: 308 | T41: 284
A42: 2016-11-01 | B42: 10000 | C42: 0 | D42: 13144 | E42: 13164 | F42: 13188 | G42: 13208 | H42: 13228 | I42: 13248 | J42: 13280 | K42: 13312 | L42: 13344 | M42: 13372 | N42: 13404 | O42: 13436 | P42: 13436 | Q42: 13436 | R42: 11-2016 history | S42: 292 | T42: 272
A43: 2017-05-01 | B43: 10000 | C43: 0 | D43: 12960 | E43: 12980 | F43: 13000 | G43: 13020 | H43: 13044 | I43: 13064 | J43: 13096 | K43: 13124 | L43: 13156 | M43: 13188 | N43: 13220 | O43: 13252 | P43: 13252 | Q43: 13252 | R43: 05-2017 history | S43: 292 | T43: 272
A44: 2017-11-01 | B44: 10000 | C44: 0.001 | D44: 12916 | E44: 12940 | F44: 12960 | G44: 12980 | H44: 13004 | I44: 13024 | J44: 13056 | K44: 13088 | L44: 13120 | M44: 13152 | N44: 13184 | O44: 13216 | P44: 13216 | Q44: 13216 | R44: 11-2017 history | S44: 300 | T44: 276
A45: 2018-05-01 | B45: 10000 | C45: 0.003 | D45: 12932 | E45: 12956 | F45: 12980 | G45: 13004 | H45: 13028 | I45: 13048 | J45: 13084 | K45: 13116 | L45: 13152 | M45: 13184 | N45: 13220 | O45: 13256 | P45: 13256 | Q45: 13256 | R45: 05-2018 history | S45: =IF(ISNUMBER(P45), P45-MAX($B45,D45),0) -> 324 | T45: =IF(ISNUMBER(Q45), Q45-MAX($B45,E45),0) -> 300
A46: 2018-11-01 | B46: 10000 | C46: 0.005 | D46: 12916 | E46: 12944 | F46: 12968 | G46: 12996 | H46: 13020 | I46: 13048 | J46: 13084 | K46: 13120 | L46: 13156 | M46: 13196 | N46: 13232 | O46: 13268 | P46: 13268 | Q46: 13268 | R46: 11-2018 history | S46: 352 | T46: 324
A47: 2019-05-01 | B47: 10000 | C47: 0.005 | D47: 12740 | E47: 12768 | F47: 12792 | G47: 12816 | H47: 12844 | I47: 12868 | J47: 12904 | K47: 12940 | L47: 12976 | M47: 13012 | N47: 13048 | O47: 13084 | P47: 13084 | Q47: 13084 | R47: 05-2019 history | S47: 344 | T47: 316
A48: 2019-11-01 | B48: 10000 | C48: 0.002 | D48: 12432 | E48: 12456 | F48: 12476 | G48: 12500 | H48: 12520 | I48: 12544 | J48: 12576 | K48: 12608 | L48: 12640 | M48: 12672 | N48: 12704 | O48: 12736 | P48: 12736 | Q48: 12736 | R48: 11-2019 history | S48: 304 | T48: 280
A49: 2020-05-01 | B49: 10000 | C49: 0 | D49: 12184 | E49: 12204 | F49: 12220 | G49: 12240 | H49: 12260 | I49: 12280 | J49: 12308 | K49: 12340 | L49: 12368 | M49: 12396 | N49: 12428 | O49: 12456 | P49: 12456 | Q49: 12456 | R49: 05-2020 history | S49: 272 | T49: 252
A50: 2020-11-01 | B50: 10000 | C50: 0 | D50: 12124 | E50: 12144 | F50: 12160 | G50: 12180 | H50: 12200 | I50: 12220 | J50: 12248 | K50: 12276 | L50: 12308 | M50: 12336 | N50: 12364 | O50: 12396 | P50: 12396 | Q50: 12396 | R50: 11-2020 history | S50: 272 | T50: 252
A51: 2021-05-01 | B51: 10000 | C51: 0 | D51: 12020 | E51: 12036 | F51: 12056 | G51: 12076 | H51: 12096 | I51: 12116 | J51: 12144 | K51: 12172 | L51: 12204 | M51: 12232 | N51: 12260 | O51: 12288 | P51: 12288 | Q51: 12288 | R51: 05-2021 history | S51: 268 | T51: 252
A52: 2021-11-01 | B52: 10000 | C52: 0 | D52: 11812 | E52: 11828 | F52: 11848 | G52: 11868 | H52: 11884 | I52: 11904 | J52: 11932 | K52: 11960 | L52: 11988 | M52: 12016 | N52: 12044 | O52: 12076 | P52: 12076 | Q52: 12076 | R52: 11-2021 history | S52: 264 | T52: 248
A53: 2022-05-01 | B53: 10000 | C53: 0 | D53: 11404 | E53: 11424 | F53: 11440 | G53: 11460 | H53: 11480 | I53: 11496 | J53: 11524 | K53: 11552 | L53: 11576 | M53: 11604 | N53: 11632 | O53: 11660 | P53: 11660 | Q53: 11660 | R53: 05-2022 history | S53: 256 | T53: 236
A54: 2022-11-01 | B54: 10000 | C54: 0.004 | D54: 10968 | E54: 10988 | F54: 11012 | G54: 11032 | H54: 11052 | I54: 11072 | J54: 11100 | K54: 11132 | L54: 11164 | M54: 11192 | N54: 11224 | O54: 11252 | P54: 11252 | Q54: 11252 | R54: 11-2022 history | S54: =IF(ISNUMBER(P54), P54-MAX($B54,D54),0) -> 284 | T54: =IF(ISNUMBER(Q54), Q54-MAX($B54,E54),0) -> 264
A55: 2023-05-01 | B55: 10000 | C55: 0.009 | D55: 10692 | E55: 10716 | F55: 10744 | G55: 10768 | H55: 10792 | I55: 10816 | J55: 10848 | K55: 10884 | L55: 10916 | M55: 10952 | N55: 10984 | O55: 11020 | P55: 11020 | Q55: 11020 | R55: 05-2023 history | S55: =IF(ISNUMBER(P55), P55-MAX($B55,D55),0) -> 328 | T55: =IF(ISNUMBER(Q55), Q55-MAX($B55,E55),0) -> 304
A56: 2023-11-01 | B56: 10000 | C56: 0.013 | D56: 10512 | E56: 10540 | F56: 10568 | G56: 10596 | H56: 10624 | I56: 10652 | J56: 10688 | K56: 10724 | L56: 10764 | M56: 10800 | N56: 10836 | O56: 10876 | P56: 10876 | Q56: 10876 | R56: 11-2023 history | S56: 364 | T56: =IF(ISNUMBER(Q56), Q56-MAX($B56,E56),0) -> 336
A57: 2024-05-01 | B57: 10000 | C57: 0.013 | D57: 10244 | E57: 10272 | F57: 10296 | G57: 10324 | H57: 10352 | I57: 10380 | J57: 10416 | K57: 10452 | L57: 10488 | M57: 10524 | N57: 10560 | O57: 10596 | P57: 10596 | Q57: 10596 | R57: 05-2024 history | S57: =IF(ISNUMBER(P57), P57-MAX($B57,D57),0) -> 352 | T57: =IF(ISNUMBER(Q57), Q57-MAX($B57,E57),0) -> 324
A58: 2024-11-01 | B58: 10000 | C58: 0.012 | D58: 10024 | E58: 10052 | F58: 10076 | G58: 10104 | H58: 10128 | I58: 10156 | J58: 10192 | K58: 10224 | L58: 10260 | M58: 10292 | N58: 10328 | O58: 10364 | P58: 10364 | Q58: 10364 | R58: 11-2024 history | S58: 340 | T58: 312
A59: 2025-05-01 | B59: 10000 | C59: 0.011 | I59: 10000 | J59: 10032 | K59: 10064 | L59: 10100 | M59: 10132 | N59: 10164 | O59: 10200 | P59: 10200 | Q59: 10200 | R59: 05-2025 history | S59: =IF(ISNUMBER(P59), P59-MAX($B59,D59),0) -> 200 | T59: =IF(ISNUMBER(Q59), Q59-MAX($B59,E59),0) -> 200

Sheet Mature
A2: m/yyyy;; | B2: ###,##0;; | C2: #0.0% | D2: ###,##0.00;; | E2: m/yyyy;; | F2: m/yyyy;; | G2: ###0;; | H2: #0.0;; | I2: #0.00%;; | J2: =$B2 -> ###,##0;; | K2: =$B2 -> ###,##0;;
A3: 12 | B3: 9 | C3: 7 | D3: 14 | E3: 8 | F3: 9 | G3: 6 | H3: 7 | I3: 7 | J3: 11 | K3: 11
A4: Last rates | B4: =INDEX(Rates!A:A,MATCH(FALSE,Rates!B:B,0)-1,0) -> 2025-05-01 | M4: =RIGHT(" "&ROW(A4),3)&RIGHT(A$1&A4,A$3)&RIGHT(A$1&TEXT(B4,A2),B$3) -> 4 Last rates 5/2025
A5: Future CPI | B5: 0.02 | C5: <-- Enter future inflation assumption | M5: =RIGHT(" "&ROW(A5),3)&RIGHT(A$1&A5,A$3)&RIGHT(A$1&TEXT(B5,C$2),B$3) -> 5 Future CPI 2.0%
B6: Face | C6: Fixed | D6: Now | H6: Remain | I6: Comp | J6: Grows | M6: =RIGHT(" "&ROW(A6),3)&RIGHT(A$1&A6,A$3)&RIGHT(A$1&B6,B$3)&RIGHT(A$1&C6,C$3)&RIGHT(A$1&D6,D$3)&RIGHT(A$1&E6,E$3)&RIGHT(A$1&F6,F$3)&RIGHT(A$1&G6,G$3)&RIGHT(A$1&H6,H$3)&RIGHT(A$1&I6,I$3)&RIGHT(A$1&J6,J$3)&RIGHT(A$1&K6,K$3) -> 6 Face Fixed Now Remain Comp Grows
A7: Bought | B7: Value | C7: Rate | D7: Worth | E7: As of | F7: Matures | G7: Year | H7: Life | I7: Rate | J7: To | K7: Gain | M7: =RIGHT(" "&ROW(A7),3)&RIGHT(A$1&A7,A$3)&RIGHT(A$1&B7,B$3)&RIGHT(A$1&C7,C$3)&RIGHT(A$1&D7,D$3)&RIGHT(A$1&E7,E$3)&RIGHT(A$1&F7,F$3)&RIGHT(A$1&G7,G$3)&RIGHT(A$1&H7,H$3)&RIGHT(A$1&I7,I$3)&RIGHT(A$1&J7,J$3)&RIGHT(A$1&K7,K$3) -> 7 Bought Value Rate Worth As of Matures Year Life Rate To Gain
A8: Sum | B8: =SUM(B9:B1000) -> 550000 | D8: =SUM(D9:D1000) -> 1089964 | J8: =SUM(J9:J1000) -> 1556987 | K8: =J8-B8 -> 1006987 | M8: =RIGHT(" "&ROW(A8),3)&RIGHT(A$1&TEXT(A8,A$2),A$3)&RIGHT(A$1&TEXT(B8,B$2),B$3)&RIGHT(A$1&TEXT(D8,D$2),C$3+D$3)&RIGHT(A$1&TEXT(J8,J$2),E$3+F$3+G$3+H$3+I$3+J$3)&RIGHT(A$1&TEXT(K8,K$2),K$3) -> 8 Sum 550,000 1,089,964.00 1,556,987 1,006,987
A9: =IF(ISNUMBER(Portfolio!A5),Portfolio!A5,"") -> 1998-09-01 | B9: =IF(ISNUMBER(Portfolio!B5),Portfolio!B5,"") -> 10000 | C9: =IF(ISNUMBER(Portfolio!C5),Portfolio!C5,"") -> 0.034 | D9: =IF(ISNUMBER(Portfolio!P5),Portfolio!P5,"") -> 49908 | E9: =IF(ISNUMBER(A9),DATE(YEAR(B$4),MONTH(B$4)+6+MOD(MONTH(A9),6)-MOD(MONTH(B$4),6)+IF(MOD(MONTH(A9),6)<5,6,0),DAY(B$4)),"") -> 2026-03-01 | F9: =IF(ISNUMBER(A9),DATE(YEAR(A9)+30,MONTH(A9),DAY(A9)),"") -> 2028-09-01 | G9: =IF(ISNUMBER(A9),YEAR(F9),"") -> 2028 | H9: =IF(ISNUMBER(A9),YEAR(F9)-YEAR(E9)+(MONTH(F9)-MONTH(E9))/12,"") -> 2.5 | I9: =IF(ISNUMBER(A9),ROUND(C9+B$5+C9*(B$5/2),4),"") -> 0.0543 | J9: =IF(ISNUMBER(A9),ROUND(D9*(1+I9/2)^(H9*2),0),"") -> 57061 | K9: =IF(ISNUMBER(A9),J9-B9,"") -> 47061 | M9: =RIGHT(" "&ROW(A9),3)&RIGHT(A$1&TEXT(A9,A$2),A$3)&RIGHT(A$1&TEXT(B9,B$2),B$3)&RIGHT(A$1&TEXT(C9,C$2),C$3)&RIGHT(A$1&TEXT(D9,D$2),D$3)&RIGHT(A$1&TEXT(E9,E$2),E$3)&RIGHT(A$1&TEXT(F9,F$2),F$3)&RIGHT(A$1&TEXT(G9,G$2),G$3)&RIGHT(A$1&TEXT(H9,H$2),H$3)&RIGHT(A$1&TEXT(I9,I$2),I$3)&RIGHT(A$1&TEXT(J9,J$2),J$3)&RIGHT(A$1&TEXT(K9,K$2),K$3) -> 9 9/1998 10,000 3.4% 49,908.00 3/2026 9/2028 2028 2.5 5.43% 57,061 47,061
A10: =IF(ISNUMBER(Portfolio!A6),Portfolio!A6,"") -> 1998-11-01 | B10: =IF(ISNUMBER(Portfolio!B6),Portfolio!B6,"") -> 10000 | C10: =IF(ISNUMBER(Portfolio!C6),Portfolio!C6,"") -> 0.033 | D10: =IF(ISNUMBER(Portfolio!P6),Portfolio!P6,"") -> 48348 | E10: =IF(ISNUMBER(A10),DATE(YEAR(B$4),MONTH(B$4)+6+MOD(MONTH(A10),6)-MOD(MONTH(B$4),6)+IF(MOD(MONTH(A10),6)<5,6,0),DAY(B$4)),"") -> 2025-11-01 | F10: =IF(ISNUMBER(A10),DATE(YEAR(A10)+30,MONTH(A10),DAY(A10)),"") -> 2028-11-01 | G10: =IF(ISNUMBER(A10),YEAR(F10),"") -> 2028 | H10: =IF(ISNUMBER(A10),YEAR(F10)-YEAR(E10)+(MONTH(F10)-MONTH(E10))/12,"") -> 3 | I10: =IF(ISNUMBER(A10),ROUND(C10+B$5+C10*(B$5/2),4),"") -> 0.0533 | J10: =IF(ISNUMBER(A10),ROUND(D10*(1+I10/2)^(H10*2),0),"") -> 56613 | K10: =IF(ISNUMBER(A10),J10-B10,"") -> 46613 | M10: =RIGHT(" "&ROW(A10),3)&RIGHT(A$1&TEXT(A10,A$2),A$3)&RIGHT(A$1&TEXT(B10,B$2),B$3)&RIGHT(A$1&TEXT(C10,C$2),C$3)&RIGHT(A$1&TEXT(D10,D$2),D$3)&RIGHT(A$1&TEXT(E10,E$2),E$3)&RIGHT(A$1&TEXT(F10,F$2),F$3)&RIGHT(A$1&TEXT(G10,G$2),G$3)&RIGHT(A$1&TEXT(H10,H$2),H$3)&RIGHT(A$1&TEXT(I10,I$2),I$3)&RIGHT(A$1&TEXT(J10,J$2),J$3)&RIGHT(A$1&TEXT(K10,K$2),K$3) -> 10 11/1998 10,000 3.3% 48,348.00 11/2025 11/2028 2028 3.0 5.33% 56,613 46,613
A11: =IF(ISNUMBER(Portfolio!A7),Portfolio!A7,"") -> 1999-05-01 | B11: =IF(ISNUMBER(Portfolio!B7),Portfolio!B7,"") -> 10000 | C11: =IF(ISNUMBER(Portfolio!C7),Portfolio!C7,"") -> 0.033 | D11: =IF(ISNUMBER(Portfolio!P7),Portfolio!P7,"") -> 47140 | E11: 2025-11-01 | F11: 2029-05-01 | G11: 2029 | H11: 3.5 | I11: 0.0533 | J11: 56669 | K11: 46669 | M11: 11 5/1999 10,000 3.3% 47,140.00 11/2025 5/2029 2029 3.5 5.33% 56,669 46,669
A12: =IF(ISNUMBER(Portfolio!A8),Portfolio!A8,"") -> 1999-11-01 | B12: =IF(ISNUMBER(Portfolio!B8),Portfolio!B8,"") -> 10000 | C12: =IF(ISNUMBER(Portfolio!C8),Portfolio!C8,"") -> 0.034 | D12: =IF(ISNUMBER(Portfolio!P8),Portfolio!P8,"") -> 47096 | E12: 2025-11-01 | F12: 2029-11-01 | G12: 2029 | H12: 4 | I12: 0.0543 | J12: 58352 | K12: 48352 | M12: 12 11/1999 10,000 3.4% 47,096.00 11/2025 11/2029 2029 4.0 5.43% 58,352 48,352
A13: =IF(ISNUMBER(Portfolio!A9),Portfolio!A9,"") -> 2000-05-01 | B13: =IF(ISNUMBER(Portfolio!B9),Portfolio!B9,"") -> 10000 | C13: =IF(ISNUMBER(Portfolio!C9),Portfolio!C9,"") -> 0.036 | D13: =IF(ISNUMBER(Portfolio!P9),Portfolio!P9,"") -> 47824 | E13: 2025-11-01 | F13: 2030-05-01 | G13: 2030 | H13: 4.5 | I13: 0.0564 | J13: 61425 | K13: 51425 | M13: 13 5/2000 10,000 3.6% 47,824.00 11/2025 5/2030 2030 4.5 5.64% 61,425 51,425
A14: =IF(ISNUMBER(Portfolio!A10),Portfolio!A10,"") -> 2000-11-01 | B14: =IF(ISNUMBER(Portfolio!B10),Portfolio!B10,"") -> 10000 | C14: =IF(ISNUMBER(Portfolio!C10),Portfolio!C10,"") -> 0.034 | D14: =IF(ISNUMBER(Portfolio!P10),Portfolio!P10,"") -> 43928 | E14: 2025-11-01 | F14: 2030-11-01 | G14: 2030 | H14: 5 | I14: 0.0543 | J14: 57422 | K14: 47422 | M14: 14 11/2000 10,000 3.4% 43,928.00 11/2025 11/2030 2030 5.0 5.43% 57,422 47,422
A15: =IF(ISNUMBER(Portfolio!A11),Portfolio!A11,"") -> 2001-05-01 | B15: =IF(ISNUMBER(Portfolio!B11),Portfolio!B11,"") -> 10000 | C15: =IF(ISNUMBER(Portfolio!C11),Portfolio!C11,"") -> 0.03 | D15: =IF(ISNUMBER(Portfolio!P11),Portfolio!P11,"") -> 38700 | E15: 2025-11-01 | F15: 2031-05-01 | G15: 2031 | H15: 5.5 | I15: 0.0503 | J15: 50860 | K15: 40860 | M15: 15 5/2001 10,000 3.0% 38,700.00 11/2025 5/2031 2031 5.5 5.03% 50,860 40,860
A16: =IF(ISNUMBER(Portfolio!A12),Portfolio!A12,"") -> 2001-11-01 | B16: =IF(ISNUMBER(Portfolio!B12),Portfolio!B12,"") -> 10000 | C16: =IF(ISNUMBER(Portfolio!C12),Portfolio!C12,"") -> 0.02 | D16: =IF(ISNUMBER(Portfolio!P12),Portfolio!P12,"") -> 29808 | E16: 2025-11-01 | F16: 2031-11-01 | G16: 2031 | H16: 6 | I16: 0.0402 | J16: 37848 | K16: 27848 | M16: 16 11/2001 10,000 2.0% 29,808.00 11/2025 11/2031 2031 6.0 4.02% 37,848 27,848
A17: =IF(ISNUMBER(Portfolio!A13),Portfolio!A13,"") -> 2002-05-01 | B17: =IF(ISNUMBER(Portfolio!B13),Portfolio!B13,"") -> 10000 | C17: =IF(ISNUMBER(Portfolio!C13),Portfolio!C13,"") -> 0.02 | D17: =IF(ISNUMBER(Portfolio!P13),Portfolio!P13,"") -> 29168 | E17: 2025-11-01 | F17: 2032-05-01 | G17: 2032 | H17: 6.5 | I17: 0.0402 | J17: 37780 | K17: 27780 | M17: 17 5/2002 10,000 2.0% 29,168.00 11/2025 5/2032 2032 6.5 4.02% 37,780 27,780
A18: =IF(ISNUMBER(Portfolio!A14),Portfolio!A14,"") -> 2002-11-01 | B18: =IF(ISNUMBER(Portfolio!B14),Portfolio!B14,"") -> 10000 | C18: =IF(ISNUMBER(Portfolio!C14),Portfolio!C14,"") -> 0.016 | D18: =IF(ISNUMBER(Portfolio!P14),Portfolio!P14,"") -> 26344 | E18: 2025-11-01 | F18: 2032-11-01 | G18: 2032 | H18: 7 | I18: 0.0362 | J18: 33865 | K18: 23865 | M18: 18 11/2002 10,000 1.6% 26,344.00 11/2025 11/2032 2032 7.0 3.62% 33,865 23,865
A19: =IF(ISNUMBER(Portfolio!A15),Portfolio!A15,"") -> 2003-05-01 | B19: =IF(ISNUMBER(Portfolio!B15),Portfolio!B15,"") -> 10000 | C19: =IF(ISNUMBER(Portfolio!C15),Portfolio!C15,"") -> 0.011 | D19: =IF(ISNUMBER(Portfolio!P15),Portfolio!P15,"") -> 23224 | E19: 2025-11-01 | F19: 2033-05-01 | G19: 2033 | H19: 7.5 | I19: 0.0311 | J19: 29272 | K19: 19272 | M19: 19 5/2003 10,000 1.1% 23,224.00 11/2025 5/2033 2033 7.5 3.11% 29,272 19,272
A20: =IF(ISNUMBER(Portfolio!A16),Portfolio!A16,"") -> 2003-11-01 | B20: =IF(ISNUMBER(Portfolio!B16),Portfolio!B16,"") -> 10000 | C20: =IF(ISNUMBER(Portfolio!C16),Portfolio!C16,"") -> 0.011 | D20: =IF(ISNUMBER(Portfolio!P16),Portfolio!P16,"") -> 22660 | E20: 2025-11-01 | F20: 2033-11-01 | G20: 2033 | H20: 8 | I20: 0.0311 | J20: 29006 | K20: 19006 | M20: 20 11/2003 10,000 1.1% 22,660.00 11/2025 11/2033 2033 8.0 3.11% 29,006 19,006
A21: =IF(ISNUMBER(Portfolio!A17),Portfolio!A17,"") -> 2004-05-01 | B21: =IF(ISNUMBER(Portfolio!B17),Portfolio!B17,"") -> 10000 | C21: =IF(ISNUMBER(Portfolio!C17),Portfolio!C17,"") -> 0.01 | D21: =IF(ISNUMBER(Portfolio!P17),Portfolio!P17,"") -> 22000 | E21: 2025-11-01 | F21: 2034-05-01 | G21: 2034 | H21: 8.5 | I21: 0.0301 | J21: 28360 | K21: 18360 | M21: 21 5/2004 10,000 1.0% 22,000.00 11/2025 5/2034 2034 8.5 3.01% 28,360 18,360
A22: =IF(ISNUMBER(Portfolio!A18),Portfolio!A18,"") -> 2004-11-01 | B22: =IF(ISNUMBER(Portfolio!B18),Portfolio!B18,"") -> 10000 | C22: =IF(ISNUMBER(Portfolio!C18),Portfolio!C18,"") -> 0.01 | D22: =IF(ISNUMBER(Portfolio!P18),Portfolio!P18,"") -> 21608 | E22: 2025-11-01 | F22: 2034-11-01 | G22: 2034 | H22: 9 | I22: 0.0301 | J22: 28274 | K22: 18274 | M22: 22 11/2004 10,000 1.0% 21,608.00 11/2025 11/2034 2034 9.0 3.01% 28,274 18,274
A23: =IF(ISNUMBER(Portfolio!A19),Portfolio!A19,"") -> 2005-05-01 | B23: =IF(ISNUMBER(Portfolio!B19),Portfolio!B19,"") -> 10000 | C23: =IF(ISNUMBER(Portfolio!C19),Portfolio!C19,"") -> 0.012 | D23: =IF(ISNUMBER(Portfolio!P19),Portfolio!P19,"") -> 22064 | E23: 2025-11-01 | F23: 2035-05-01 | G23: 2035 | H23: 9.5 | I23: 0.0321 | J23: 29859 | K23: 19859 | M23: 23 5/2005 10,000 1.2% 22,064.00 11/2025 5/2035 2035 9.5 3.21% 29,859 19,859
A24: =IF(ISNUMBER(Portfolio!A20),Portfolio!A20,"") -> 2005-11-01 | B24: =IF(ISNUMBER(Portfolio!B20),Portfolio!B20,"") -> 10000 | C24: =IF(ISNUMBER(Portfolio!C20),Portfolio!C20,"") -> 0.01 | D24: =IF(ISNUMBER(Portfolio!P20),Portfolio!P20,"") -> 20744 | E24: 2025-11-01 | F24: 2035-11-01 | G24: 2035 | H24: 10 | I24: 0.0301 | J24: 27967 | K24: 17967 | M24: 24 11/2005 10,000 1.0% 20,744.00 11/2025 11/2035 2035 10.0 3.01% 27,967 17,967
A25: =IF(ISNUMBER(Portfolio!A21),Portfolio!A21,"") -> 2006-05-01 | B25: =IF(ISNUMBER(Portfolio!B21),Portfolio!B21,"") -> 10000 | C25: =IF(ISNUMBER(Portfolio!C21),Portfolio!C21,"") -> 0.014 | D25: =IF(ISNUMBER(Portfolio!P21),Portfolio!P21,"") -> 21580 | E25: 2025-11-01 | F25: 2036-05-01 | G25: 2036 | H25: 10.5 | I25: 0.0341 | J25: 30778 | K25: 20778 | M25: =RIGHT(" "&ROW(A25),3)&RIGHT(A$1&TEXT(A25,A$2),A$3)&RIGHT(A$1&TEXT(B25,B$2),B$3)&RIGHT(A$1&TEXT(C25,C$2),C$3)&RIGHT(A$1&TEXT(D25,D$2),D$3)&RIGHT(A$1&TEXT(E25,E$2),E$3)&RIGHT(A$1&TEXT(F25,F$2),F$3)&RIGHT(A$1&TEXT(G25,G$2),G$3)&RIGHT(A$1&TEXT(H25,H$2),H$3)&RIGHT(A$1&TEXT(I25,I$2),I$3)&RIGHT(A$1&TEXT(J25,J$2),J$3)&RIGHT(A$1&TEXT(K25,K$2),K$3) -> 25 5/2006 10,000 1.4% 21,580.00 11/2025 5/2036 2036 10.5 3.41% 30,778 20,778
A26: =IF(ISNUMBER(Portfolio!A22),Portfolio!A22,"") -> 2006-11-01 | B26: =IF(ISNUMBER(Portfolio!B22),Portfolio!B22,"") -> 10000 | C26: =IF(ISNUMBER(Portfolio!C22),Portfolio!C22,"") -> 0.014 | D26: =IF(ISNUMBER(Portfolio!P22),Portfolio!P22,"") -> 21364 | E26: 2025-11-01 | F26: 2036-11-01 | G26: 2036 | H26: 11 | I26: 0.0341 | J26: 30989 | K26: 20989 | M26: 26 11/2006 10,000 1.4% 21,364.00 11/2025 11/2036 2036 11.0 3.41% 30,989 20,989
A27: =IF(ISNUMBER(Portfolio!A23),Portfolio!A23,"") -> 2007-05-01 | B27: =IF(ISNUMBER(Portfolio!B23),Portfolio!B23,"") -> 10000 | C27: =IF(ISNUMBER(Portfolio!C23),Portfolio!C23,"") -> 0.013 | D27: =IF(ISNUMBER(Portfolio!P23),Portfolio!P23,"") -> 20504 | E27: 2025-11-01 | F27: 2037-05-01 | G27: 2037 | H27: 11.5 | I27: 0.0331 | J27: 29909 | K27: 19909 | M27: 27 5/2007 10,000 1.3% 20,504.00 11/2025 5/2037 2037 11.5 3.31% 29,909 19,909
A28: =IF(ISNUMBER(Portfolio!A24),Portfolio!A24,"") -> 2007-11-01 | B28: =IF(ISNUMBER(Portfolio!B24),Portfolio!B24,"") -> 10000 | C28: =IF(ISNUMBER(Portfolio!C24),Portfolio!C24,"") -> 0.012 | D28: =IF(ISNUMBER(Portfolio!P24),Portfolio!P24,"") -> 19796 | E28: 2025-11-01 | F28: 2037-11-01 | G28: 2037 | H28: 12 | I28: 0.0321 | J28: 29009 | K28: 19009 | M28: 28 11/2007 10,000 1.2% 19,796.00 11/2025 11/2037 2037 12.0 3.21% 29,009 19,009
A29: =IF(ISNUMBER(Portfolio!A25),Portfolio!A25,"") -> 2008-05-01 | B29: =IF(ISNUMBER(Portfolio!B25),Portfolio!B25,"") -> 10000 | C29: =IF(ISNUMBER(Portfolio!C25),Portfolio!C25,"") -> 0 | D29: =IF(ISNUMBER(Portfolio!P25),Portfolio!P25,"") -> 15916 | E29: 2025-11-01 | F29: 2038-05-01 | G29: 2038 | H29: 12.5 | I29: 0.02 | J29: 20411 | K29: 10411 | M29: 29 5/2008 10,000 0.0% 15,916.00 11/2025 5/2038 2038 12.5 2.00% 20,411 10,411
A30: =IF(ISNUMBER(Portfolio!A26),Portfolio!A26,"") -> 2008-11-01 | B30: =IF(ISNUMBER(Portfolio!B26),Portfolio!B26,"") -> 10000 | C30: =IF(ISNUMBER(Portfolio!C26),Portfolio!C26,"") -> 0.007 | D30: =IF(ISNUMBER(Portfolio!P26),Portfolio!P26,"") -> 17372 | E30: 2025-11-01 | F30: 2038-11-01 | G30: 2038 | H30: 13 | I30: 0.0271 | J30: 24650 | K30: 14650 | M30: 30 11/2008 10,000 0.7% 17,372.00 11/2025 11/2038 2038 13.0 2.71% 24,650 14,650
A31: =IF(ISNUMBER(Portfolio!A27),Portfolio!A27,"") -> 2009-05-01 | B31: =IF(ISNUMBER(Portfolio!B27),Portfolio!B27,"") -> 10000 | C31: =IF(ISNUMBER(Portfolio!C27),Portfolio!C27,"") -> 0.001 | D31: =IF(ISNUMBER(Portfolio!P27),Portfolio!P27,"") -> 15412 | E31: =IF(ISNUMBER(A31),DATE(YEAR(B$4),MONTH(B$4)+6+MOD(MONTH(A31),6)-MOD(MONTH(B$4),6)+IF(MOD(MONTH(A31),6)<5,6,0),DAY(B$4)),"") -> 2025-11-01 | F31: =IF(ISNUMBER(A31),DATE(YEAR(A31)+30,MONTH(A31),DAY(A31)),"") -> 2039-05-01 | G31: =IF(ISNUMBER(A31),YEAR(F31),"") -> 2039 | H31: =IF(ISNUMBER(A31),YEAR(F31)-YEAR(E31)+(MONTH(F31)-MONTH(E31))/12,"") -> 13.5 | I31: =IF(ISNUMBER(A31),ROUND(C31+B$5+C31*(B$5/2),4),"") -> 0.021 | J31: =IF(ISNUMBER(A31),ROUND(D31*(1+I31/2)^(H31*2),0),"") -> 20433 | K31: =IF(ISNUMBER(A31),J31-B31,"") -> 10433 | M31: =RIGHT(" "&ROW(A31),3)&RIGHT(A$1&TEXT(A31,A$2),A$3)&RIGHT(A$1&TEXT(B31,B$2),B$3)&RIGHT(A$1&TEXT(C31,C$2),C$3)&RIGHT(A$1&TEXT(D31,D$2),D$3)&RIGHT(A$1&TEXT(E31,E$2),E$3)&RIGHT(A$1&TEXT(F31,F$2),F$3)&RIGHT(A$1&TEXT(G31,G$2),G$3)&RIGHT(A$1&TEXT(H31,H$2),H$3)&RIGHT(A$1&TEXT(I31,I$2),I$3)&RIGHT(A$1&TEXT(J31,J$2),J$3)&RIGHT(A$1&TEXT(K31,K$2),K$3) -> 31 5/2009 10,000 0.1% 15,412.00 11/2025 5/2039 2039 13.5 2.10% 20,433 10,433
A32: =IF(ISNUMBER(Portfolio!A28),Portfolio!A28,"") -> 2009-11-01 | B32: =IF(ISNUMBER(Portfolio!B28),Portfolio!B28,"") -> 10000 | C32: =IF(ISNUMBER(Portfolio!C28),Portfolio!C28,"") -> 0.003 | D32: =IF(ISNUMBER(Portfolio!P28),Portfolio!P28,"") -> 15864 | E32: 2025-11-01 | F32: 2039-11-01 | G32: 2039 | H32: 14 | I32: 0.023 | J32: 21850 | K32: 11850 | M32: 32 11/2009 10,000 0.3% 15,864.00 11/2025 11/2039 2039 14.0 2.30% 21,850 11,850
A33: =IF(ISNUMBER(Portfolio!A29),Portfolio!A29,"") -> 2010-05-01 | B33: =IF(ISNUMBER(Portfolio!B29),Portfolio!B29,"") -> 10000 | C33: =IF(ISNUMBER(Portfolio!C29),Portfolio!C29,"") -> 0.002 | D33: =IF(ISNUMBER(Portfolio!P29),Portfolio!P29,"") -> 15388 | E33: 2025-11-01 | F33: 2040-05-01 | G33: 2040 | H33: 14.5 | I33: 0.022 | J33: 21133 | K33: 11133 | M33: 33 5/2010 10,000 0.2% 15,388.00 11/2025 5/2040 2040 14.5 2.20% 21,133 11,133
A34: =IF(ISNUMBER(Portfolio!A30),Portfolio!A30,"") -> 2010-11-01 | B34: =IF(ISNUMBER(Portfolio!B30),Portfolio!B30,"") -> 10000 | C34: =IF(ISNUMBER(Portfolio!C30),Portfolio!C30,"") -> 0 | D34: =IF(ISNUMBER(Portfolio!P30),Portfolio!P30,"") -> 14816 | E34: 2025-11-01 | F34: 2040-11-01 | G34: 2040 | H34: 15 | I34: 0.02 | J34: 19970 | K34: 9970 | M34: 34 11/2010 10,000 0.0% 14,816.00 11/2025 11/2040 2040 15.0 2.00% 19,970 9,970
A35: =IF(ISNUMBER(Portfolio!A31),Portfolio!A31,"") -> 2011-05-01 | B35: =IF(ISNUMBER(Portfolio!B31),Portfolio!B31,"") -> 10000 | C35: =IF(ISNUMBER(Portfolio!C31),Portfolio!C31,"") -> 0 | D35: =IF(ISNUMBER(Portfolio!P31),Portfolio!P31,"") -> 14772 | E35: 2025-11-01 | F35: 2041-05-01 | G35: 2041 | H35: 15.5 | I35: 0.02 | J35: 20110 | K35: 10110 | M35: 35 5/2011 10,000 0.0% 14,772.00 11/2025 5/2041 2041 15.5 2.00% 20,110 10,110
A36: =IF(ISNUMBER(Portfolio!A32),Portfolio!A32,"") -> 2011-11-01 | B36: =IF(ISNUMBER(Portfolio!B32),Portfolio!B32,"") -> 10000 | C36: =IF(ISNUMBER(Portfolio!C32),Portfolio!C32,"") -> 0 | D36: =IF(ISNUMBER(Portfolio!P32),Portfolio!P32,"") -> 14428 | E36: =IF(ISNUMBER(A36),DATE(YEAR(B$4),MONTH(B$4)+6+MOD(MONTH(A36),6)-MOD(MONTH(B$4),6)+IF(MOD(MONTH(A36),6)<5,6,0),DAY(B$4)),"") -> 2025-11-01 | F36: =IF(ISNUMBER(A36),DATE(YEAR(A36)+30,MONTH(A36),DAY(A36)),"") -> 2041-11-01 | G36: =IF(ISNUMBER(A36),YEAR(F36),"") -> 2041 | H36: =IF(ISNUMBER(A36),YEAR(F36)-YEAR(E36)+(MONTH(F36)-MONTH(E36))/12,"") -> 16 | I36: =IF(ISNUMBER(A36),ROUND(C36+B$5+C36*(B$5/2),4),"") -> 0.02 | J36: =IF(ISNUMBER(A36),ROUND(D36*(1+I36/2)^(H36*2),0),"") -> 19838 | K36: =IF(ISNUMBER(A36),J36-B36,"") -> 9838 | M36: =RIGHT(" "&ROW(A36),3)&RIGHT(A$1&TEXT(A36,A$2),A$3)&RIGHT(A$1&TEXT(B36,B$2),B$3)&RIGHT(A$1&TEXT(C36,C$2),C$3)&RIGHT(A$1&TEXT(D36,D$2),D$3)&RIGHT(A$1&TEXT(E36,E$2),E$3)&RIGHT(A$1&TEXT(F36,F$2),F$3)&RIGHT(A$1&TEXT(G36,G$2),G$3)&RIGHT(A$1&TEXT(H36,H$2),H$3)&RIGHT(A$1&TEXT(I36,I$2),I$3)&RIGHT(A$1&TEXT(J36,J$2),J$3)&RIGHT(A$1&TEXT(K36,K$2),K$3) -> 36 11/2011 10,000 0.0% 14,428.00 11/2025 11/2041 2041 16.0 2.00% 19,838 9,838
A37: =IF(ISNUMBER(Portfolio!A33),Portfolio!A33,"") -> 2012-05-01 | B37: =IF(ISNUMBER(Portfolio!B33),Portfolio!B33,"") -> 10000 | C37: =IF(ISNUMBER(Portfolio!C33),Portfolio!C33,"") -> 0 | D37: =IF(ISNUMBER(Portfolio!P33),Portfolio!P33,"") -> 14220 | E37: 2025-11-01 | F37: 2042-05-01 | G37: 2042 | H37: 16.5 | I37: 0.02 | J37: 19747 | K37: 9747 | M37: 37 5/2012 10,000 0.0% 14,220.00 11/2025 5/2042 2042 16.5 2.00% 19,747 9,747
A38: =IF(ISNUMBER(Portfolio!A34),Portfolio!A34,"") -> 2012-11-01 | B38: =IF(ISNUMBER(Portfolio!B34),Portfolio!B34,"") -> 10000 | C38: =IF(ISNUMBER(Portfolio!C34),Portfolio!C34,"") -> 0 | D38: =IF(ISNUMBER(Portfolio!P34),Portfolio!P34,"") -> 14056 | E38: 2025-11-01 | F38: 2042-11-01 | G38: 2042 | H38: 17 | I38: 0.02 | J38: 19715 | K38: 9715 | M38: 38 11/2012 10,000 0.0% 14,056.00 11/2025 11/2042 2042 17.0 2.00% 19,715 9,715
A39: =IF(ISNUMBER(Portfolio!A35),Portfolio!A35,"") -> 2013-05-01 | B39: =IF(ISNUMBER(Portfolio!B35),Portfolio!B35,"") -> 10000 | C39: =IF(ISNUMBER(Portfolio!C35),Portfolio!C35,"") -> 0 | D39: =IF(ISNUMBER(Portfolio!P35),Portfolio!P35,"") -> 13948 | E39: 2025-11-01 | F39: 2043-05-01 | G39: 2043 | H39: 17.5 | I39: 0.02 | J39: 19759 | K39: 9759 | M39: 39 5/2013 10,000 0.0% 13,948.00 11/2025 5/2043 2043 17.5 2.00% 19,759 9,759
A40: =IF(ISNUMBER(Portfolio!A36),Portfolio!A36,"") -> 2013-11-01 | B40: =IF(ISNUMBER(Portfolio!B36),Portfolio!B36,"") -> 10000 | C40: =IF(ISNUMBER(Portfolio!C36),Portfolio!C36,"") -> 0.002 | D40: =IF(ISNUMBER(Portfolio!P36),Portfolio!P36,"") -> 14172 | E40: 2025-11-01 | F40: 2043-11-01 | G40: 2043 | H40: 18 | I40: 0.022 | J40: 21012 | K40: 11012 | M40: 40 11/2013 10,000 0.2% 14,172.00 11/2025 11/2043 2043 18.0 2.20% 21,012 11,012
A41: =IF(ISNUMBER(Portfolio!A37),Portfolio!A37,"") -> 2014-05-01 | B41: =IF(ISNUMBER(Portfolio!B37),Portfolio!B37,"") -> 10000 | C41: =IF(ISNUMBER(Portfolio!C37),Portfolio!C37,"") -> 0.001 | D41: =IF(ISNUMBER(Portfolio!P37),Portfolio!P37,"") -> 13924 | E41: 2025-11-01 | F41: 2044-05-01 | G41: 2044 | H41: 18.5 | I41: 0.021 | J41: 20493 | K41: 10493 | M41: 41 5/2014 10,000 0.1% 13,924.00 11/2025 5/2044 2044 18.5 2.10% 20,493 10,493
A42: =IF(ISNUMBER(Portfolio!A38),Portfolio!A38,"") -> 2014-11-01 | B42: =IF(ISNUMBER(Portfolio!B38),Portfolio!B38,"") -> 10000 | C42: =IF(ISNUMBER(Portfolio!C38),Portfolio!C38,"") -> 0 | D42: =IF(ISNUMBER(Portfolio!P38),Portfolio!P38,"") -> 13648 | E42: 2025-11-01 | F42: 2044-11-01 | G42: 2044 | H42: 19 | I42: 0.02 | J42: 19920 | K42: 9920 | M42: 42 11/2014 10,000 0.0% 13,648.00 11/2025 11/2044 2044 19.0 2.00% 19,920 9,920
A43: =IF(ISNUMBER(Portfolio!A39),Portfolio!A39,"") -> 2015-05-01 | B43: =IF(ISNUMBER(Portfolio!B39),Portfolio!B39,"") -> 10000 | C43: =IF(ISNUMBER(Portfolio!C39),Portfolio!C39,"") -> 0 | D43: =IF(ISNUMBER(Portfolio!P39),Portfolio!P39,"") -> 13548 | E43: 2025-11-01 | F43: 2045-05-01 | G43: 2045 | H43: 19.5 | I43: 0.02 | J43: 19971 | K43: 9971 | M43: 43 5/2015 10,000 0.0% 13,548.00 11/2025 5/2045 2045 19.5 2.00% 19,971 9,971
A44: =IF(ISNUMBER(Portfolio!A40),Portfolio!A40,"") -> 2015-11-01 | B44: =IF(ISNUMBER(Portfolio!B40),Portfolio!B40,"") -> 10000 | C44: =IF(ISNUMBER(Portfolio!C40),Portfolio!C40,"") -> 0.001 | D44: =IF(ISNUMBER(Portfolio!P40),Portfolio!P40,"") -> 13672 | E44: 2025-11-01 | F44: 2045-11-01 | G44: 2045 | H44: 20 | I44: 0.021 | J44: 20763 | K44: 10763 | M44: 44 11/2015 10,000 0.1% 13,672.00 11/2025 11/2045 2045 20.0 2.10% 20,763 10,763
A45: =IF(ISNUMBER(Portfolio!A41),Portfolio!A41,"") -> 2016-05-01 | B45: =IF(ISNUMBER(Portfolio!B41),Portfolio!B41,"") -> 10000 | C45: =IF(ISNUMBER(Portfolio!C41),Portfolio!C41,"") -> 0.001 | D45: =IF(ISNUMBER(Portfolio!P41),Portfolio!P41,"") -> 13568 | E45: 2025-11-01 | F45: 2046-05-01 | G45: 2046 | H45: 20.5 | I45: 0.021 | J45: 20821 | K45: 10821 | M45: 45 5/2016 10,000 0.1% 13,568.00 11/2025 5/2046 2046 20.5 2.10% 20,821 10,821
A46: =IF(ISNUMBER(Portfolio!A42),Portfolio!A42,"") -> 2016-11-01 | B46: =IF(ISNUMBER(Portfolio!B42),Portfolio!B42,"") -> 10000 | C46: =IF(ISNUMBER(Portfolio!C42),Portfolio!C42,"") -> 0 | D46: =IF(ISNUMBER(Portfolio!P42),Portfolio!P42,"") -> 13436 | E46: 2025-11-01 | F46: 2046-11-01 | G46: 2046 | H46: 21 | I46: 0.02 | J46: 20406 | K46: 10406 | M46: 46 11/2016 10,000 0.0% 13,436.00 11/2025 11/2046 2046 21.0 2.00% 20,406 10,406
A47: =IF(ISNUMBER(Portfolio!A43),Portfolio!A43,"") -> 2017-05-01 | B47: =IF(ISNUMBER(Portfolio!B43),Portfolio!B43,"") -> 10000 | C47: =IF(ISNUMBER(Portfolio!C43),Portfolio!C43,"") -> 0 | D47: =IF(ISNUMBER(Portfolio!P43),Portfolio!P43,"") -> 13252 | E47: 2025-11-01 | F47: 2047-05-01 | G47: 2047 | H47: 21.5 | I47: 0.02 | J47: 20328 | K47: 10328 | M47: 47 5/2017 10,000 0.0% 13,252.00 11/2025 5/2047 2047 21.5 2.00% 20,328 10,328
A48: =IF(ISNUMBER(Portfolio!A44),Portfolio!A44,"") -> 2017-11-01 | B48: =IF(ISNUMBER(Portfolio!B44),Portfolio!B44,"") -> 10000 | C48: =IF(ISNUMBER(Portfolio!C44),Portfolio!C44,"") -> 0.001 | D48: =IF(ISNUMBER(Portfolio!P44),Portfolio!P44,"") -> 13216 | E48: =IF(ISNUMBER(A48),DATE(YEAR(B$4),MONTH(B$4)+6+MOD(MONTH(A48),6)-MOD(MONTH(B$4),6)+IF(MOD(MONTH(A48),6)<5,6,0),DAY(B$4)),"") -> 2025-11-01 | F48: =IF(ISNUMBER(A48),DATE(YEAR(A48)+30,MONTH(A48),DAY(A48)),"") -> 2047-11-01 | G48: =IF(ISNUMBER(A48),YEAR(F48),"") -> 2047 | H48: =IF(ISNUMBER(A48),YEAR(F48)-YEAR(E48)+(MONTH(F48)-MONTH(E48))/12,"") -> 22 | I48: =IF(ISNUMBER(A48),ROUND(C48+B$5+C48*(B$5/2),4),"") -> 0.021 | J48: =IF(ISNUMBER(A48),ROUND(D48*(1+I48/2)^(H48*2),0),"") -> 20927 | K48: =IF(ISNUMBER(A48),J48-B48,"") -> 10927 | M48: =RIGHT(" "&ROW(A48),3)&RIGHT(A$1&TEXT(A48,A$2),A$3)&RIGHT(A$1&TEXT(B48,B$2),B$3)&RIGHT(A$1&TEXT(C48,C$2),C$3)&RIGHT(A$1&TEXT(D48,D$2),D$3)&RIGHT(A$1&TEXT(E48,E$2),E$3)&RIGHT(A$1&TEXT(F48,F$2),F$3)&RIGHT(A$1&TEXT(G48,G$2),G$3)&RIGHT(A$1&TEXT(H48,H$2),H$3)&RIGHT(A$1&TEXT(I48,I$2),I$3)&RIGHT(A$1&TEXT(J48,J$2),J$3)&RIGHT(A$1&TEXT(K48,K$2),K$3) -> 48 11/2017 10,000 0.1% 13,216.00 11/2025 11/2047 2047 22.0 2.10% 20,927 10,927
A49: =IF(ISNUMBER(Portfolio!A45),Portfolio!A45,"") -> 2018-05-01 | B49: =IF(ISNUMBER(Portfolio!B45),Portfolio!B45,"") -> 10000 | C49: =IF(ISNUMBER(Portfolio!C45),Portfolio!C45,"") -> 0.003 | D49: =IF(ISNUMBER(Portfolio!P45),Portfolio!P45,"") -> 13256 | E49: 2025-11-01 | F49: 2048-05-01 | G49: 2048 | H49: 22.5 | I49: 0.023 | J49: 22176 | K49: 12176 | M49: 49 5/2018 10,000 0.3% 13,256.00 11/2025 5/2048 2048 22.5 2.30% 22,176 12,176
A50: =IF(ISNUMBER(Portfolio!A46),Portfolio!A46,"") -> 2018-11-01 | B50: =IF(ISNUMBER(Portfolio!B46),Portfolio!B46,"") -> 10000 | C50: =IF(ISNUMBER(Portfolio!C46),Portfolio!C46,"") -> 0.005 | D50: =IF(ISNUMBER(Portfolio!P46),Portfolio!P46,"") -> 13268 | E50: 2025-11-01 | F50: 2048-11-01 | G50: 2048 | H50: 23 | I50: 0.0251 | J50: 23549 | K50: 13549 | M50: 50 11/2018 10,000 0.5% 13,268.00 11/2025 11/2048 2048 23.0 2.51% 23,549 13,549
A51: =IF(ISNUMBER(Portfolio!A47),Portfolio!A47,"") -> 2019-05-01 | B51: =IF(ISNUMBER(Portfolio!B47),Portfolio!B47,"") -> 10000 | C51: =IF(ISNUMBER(Portfolio!C47),Portfolio!C47,"") -> 0.005 | D51: =IF(ISNUMBER(Portfolio!P47),Portfolio!P47,"") -> 13084 | E51: 2025-11-01 | F51: 2049-05-01 | G51: 2049 | H51: 23.5 | I51: 0.0251 | J51: 23513 | K51: 13513 | M51: 51 5/2019 10,000 0.5% 13,084.00 11/2025 5/2049 2049 23.5 2.51% 23,513 13,513
A52: =IF(ISNUMBER(Portfolio!A48),Portfolio!A48,"") -> 2019-11-01 | B52: =IF(ISNUMBER(Portfolio!B48),Portfolio!B48,"") -> 10000 | C52: =IF(ISNUMBER(Portfolio!C48),Portfolio!C48,"") -> 0.002 | D52: =IF(ISNUMBER(Portfolio!P48),Portfolio!P48,"") -> 12736 | E52: 2025-11-01 | F52: 2049-11-01 | G52: 2049 | H52: 24 | I52: 0.022 | J52: 21532 | K52: 11532 | M52: 52 11/2019 10,000 0.2% 12,736.00 11/2025 11/2049 2049 24.0 2.20% 21,532 11,532
A53: =IF(ISNUMBER(Portfolio!A49),Portfolio!A49,"") -> 2020-05-01 | B53: =IF(ISNUMBER(Portfolio!B49),Portfolio!B49,"") -> 10000 | C53: =IF(ISNUMBER(Portfolio!C49),Portfolio!C49,"") -> 0 | D53: =IF(ISNUMBER(Portfolio!P49),Portfolio!P49,"") -> 12456 | E53: 2025-11-01 | F53: 2050-05-01 | G53: 2050 | H53: 24.5 | I53: 0.02 | J53: 20283 | K53: 10283 | M53: 53 5/2020 10,000 0.0% 12,456.00 11/2025 5/2050 2050 24.5 2.00% 20,283 10,283
A54: =IF(ISNUMBER(Portfolio!A50),Portfolio!A50,"") -> 2020-11-01 | B54: =IF(ISNUMBER(Portfolio!B50),Portfolio!B50,"") -> 10000 | C54: =IF(ISNUMBER(Portfolio!C50),Portfolio!C50,"") -> 0 | D54: =IF(ISNUMBER(Portfolio!P50),Portfolio!P50,"") -> 12396 | E54: 2025-11-01 | F54: 2050-11-01 | G54: 2050 | H54: 25 | I54: 0.02 | J54: 20387 | K54: 10387 | M54: 54 11/2020 10,000 0.0% 12,396.00 11/2025 11/2050 2050 25.0 2.00% 20,387 10,387
A55: =IF(ISNUMBER(Portfolio!A51),Portfolio!A51,"") -> 2021-05-01 | B55: =IF(ISNUMBER(Portfolio!B51),Portfolio!B51,"") -> 10000 | C55: =IF(ISNUMBER(Portfolio!C51),Portfolio!C51,"") -> 0 | D55: =IF(ISNUMBER(Portfolio!P51),Portfolio!P51,"") -> 12288 | E55: 2025-11-01 | F55: 2051-05-01 | G55: 2051 | H55: 25.5 | I55: 0.02 | J55: 20411 | K55: 10411 | M55: 55 5/2021 10,000 0.0% 12,288.00 11/2025 5/2051 2051 25.5 2.00% 20,411 10,411
A56: =IF(ISNUMBER(Portfolio!A52),Portfolio!A52,"") -> 2021-11-01 | B56: =IF(ISNUMBER(Portfolio!B52),Portfolio!B52,"") -> 10000 | C56: =IF(ISNUMBER(Portfolio!C52),Portfolio!C52,"") -> 0 | D56: =IF(ISNUMBER(Portfolio!P52),Portfolio!P52,"") -> 12076 | E56: 2025-11-01 | F56: 2051-11-01 | G56: 2051 | H56: 26 | I56: 0.02 | J56: 20260 | K56: 10260 | M56: 56 11/2021 10,000 0.0% 12,076.00 11/2025 11/2051 2051 26.0 2.00% 20,260 10,260
A57: =IF(ISNUMBER(Portfolio!A53),Portfolio!A53,"") -> 2022-05-01 | B57: =IF(ISNUMBER(Portfolio!B53),Portfolio!B53,"") -> 10000 | C57: =IF(ISNUMBER(Portfolio!C53),Portfolio!C53,"") -> 0 | D57: =IF(ISNUMBER(Portfolio!P53),Portfolio!P53,"") -> 11660 | E57: =IF(ISNUMBER(A57),DATE(YEAR(B$4),MONTH(B$4)+6+MOD(MONTH(A57),6)-MOD(MONTH(B$4),6)+IF(MOD(MONTH(A57),6)<5,6,0),DAY(B$4)),"") -> 2025-11-01 | F57: =IF(ISNUMBER(A57),DATE(YEAR(A57)+30,MONTH(A57),DAY(A57)),"") -> 2052-05-01 | G57: =IF(ISNUMBER(A57),YEAR(F57),"") -> 2052 | H57: =IF(ISNUMBER(A57),YEAR(F57)-YEAR(E57)+(MONTH(F57)-MONTH(E57))/12,"") -> 26.5 | I57: =IF(ISNUMBER(A57),ROUND(C57+B$5+C57*(B$5/2),4),"") -> 0.02 | J57: =IF(ISNUMBER(A57),ROUND(D57*(1+I57/2)^(H57*2),0),"") -> 19757 | K57: =IF(ISNUMBER(A57),J57-B57,"") -> 9757 | M57: =RIGHT(" "&ROW(A57),3)&RIGHT(A$1&TEXT(A57,A$2),A$3)&RIGHT(A$1&TEXT(B57,B$2),B$3)&RIGHT(A$1&TEXT(C57,C$2),C$3)&RIGHT(A$1&TEXT(D57,D$2),D$3)&RIGHT(A$1&TEXT(E57,E$2),E$3)&RIGHT(A$1&TEXT(F57,F$2),F$3)&RIGHT(A$1&TEXT(G57,G$2),G$3)&RIGHT(A$1&TEXT(H57,H$2),H$3)&RIGHT(A$1&TEXT(I57,I$2),I$3)&RIGHT(A$1&TEXT(J57,J$2),J$3)&RIGHT(A$1&TEXT(K57,K$2),K$3) -> 57 5/2022 10,000 0.0% 11,660.00 11/2025 5/2052 2052 26.5 2.00% 19,757 9,757
A58: =IF(ISNUMBER(Portfolio!A54),Portfolio!A54,"") -> 2022-11-01 | B58: =IF(ISNUMBER(Portfolio!B54),Portfolio!B54,"") -> 10000 | C58: =IF(ISNUMBER(Portfolio!C54),Portfolio!C54,"") -> 0.004 | D58: =IF(ISNUMBER(Portfolio!P54),Portfolio!P54,"") -> 11252 | E58: =IF(ISNUMBER(A58),DATE(YEAR(B$4),MONTH(B$4)+6+MOD(MONTH(A58),6)-MOD(MONTH(B$4),6)+IF(MOD(MONTH(A58),6)<5,6,0),DAY(B$4)),"") -> 2025-11-01 | F58: =IF(ISNUMBER(A58),DATE(YEAR(A58)+30,MONTH(A58),DAY(A58)),"") -> 2052-11-01 | G58: =IF(ISNUMBER(A58),YEAR(F58),"") -> 2052 | H58: =IF(ISNUMBER(A58),YEAR(F58)-YEAR(E58)+(MONTH(F58)-MONTH(E58))/12,"") -> 27 | I58: =IF(ISNUMBER(A58),ROUND(C58+B$5+C58*(B$5/2),4),"") -> 0.024 | J58: =IF(ISNUMBER(A58),ROUND(D58*(1+I58/2)^(H58*2),0),"") -> 21428 | K58: =IF(ISNUMBER(A58),J58-B58,"") -> 11428 | M58: =RIGHT(" "&ROW(A58),3)&RIGHT(A$1&TEXT(A58,A$2),A$3)&RIGHT(A$1&TEXT(B58,B$2),B$3)&RIGHT(A$1&TEXT(C58,C$2),C$3)&RIGHT(A$1&TEXT(D58,D$2),D$3)&RIGHT(A$1&TEXT(E58,E$2),E$3)&RIGHT(A$1&TEXT(F58,F$2),F$3)&RIGHT(A$1&TEXT(G58,G$2),G$3)&RIGHT(A$1&TEXT(H58,H$2),H$3)&RIGHT(A$1&TEXT(I58,I$2),I$3)&RIGHT(A$1&TEXT(J58,J$2),J$3)&RIGHT(A$1&TEXT(K58,K$2),K$3) -> 58 11/2022 10,000 0.4% 11,252.00 11/2025 11/2052 2052 27.0 2.40% 21,428 11,428
A59: =IF(ISNUMBER(Portfolio!A55),Portfolio!A55,"") -> 2023-05-01 | B59: =IF(ISNUMBER(Portfolio!B55),Portfolio!B55,"") -> 10000 | C59: =IF(ISNUMBER(Portfolio!C55),Portfolio!C55,"") -> 0.009 | D59: =IF(ISNUMBER(Portfolio!P55),Portfolio!P55,"") -> 11020 | E59: =IF(ISNUMBER(A59),DATE(YEAR(B$4),MONTH(B$4)+6+MOD(MONTH(A59),6)-MOD(MONTH(B$4),6)+IF(MOD(MONTH(A59),6)<5,6,0),DAY(B$4)),"") -> 2025-11-01 | F59: =IF(ISNUMBER(A59),DATE(YEAR(A59)+30,MONTH(A59),DAY(A59)),"") -> 2053-05-01 | G59: =IF(ISNUMBER(A59),YEAR(F59),"") -> 2053 | H59: =IF(ISNUMBER(A59),YEAR(F59)-YEAR(E59)+(MONTH(F59)-MONTH(E59))/12,"") -> 27.5 | I59: =IF(ISNUMBER(A59),ROUND(C59+B$5+C59*(B$5/2),4),"") -> 0.0291 | J59: =IF(ISNUMBER(A59),ROUND(D59*(1+I59/2)^(H59*2),0),"") -> 24391 | K59: =IF(ISNUMBER(A59),J59-B59,"") -> 14391 | M59: =RIGHT(" "&ROW(A59),3)&RIGHT(A$1&TEXT(A59,A$2),A$3)&RIGHT(A$1&TEXT(B59,B$2),B$3)&RIGHT(A$1&TEXT(C59,C$2),C$3)&RIGHT(A$1&TEXT(D59,D$2),D$3)&RIGHT(A$1&TEXT(E59,E$2),E$3)&RIGHT(A$1&TEXT(F59,F$2),F$3)&RIGHT(A$1&TEXT(G59,G$2),G$3)&RIGHT(A$1&TEXT(H59,H$2),H$3)&RIGHT(A$1&TEXT(I59,I$2),I$3)&RIGHT(A$1&TEXT(J59,J$2),J$3)&RIGHT(A$1&TEXT(K59,K$2),K$3) -> 59 5/2023 10,000 0.9% 11,020.00 11/2025 5/2053 2053 27.5 2.91% 24,391 14,391
A60: =IF(ISNUMBER(Portfolio!A56),Portfolio!A56,"") -> 2023-11-01 | B60: =IF(ISNUMBER(Portfolio!B56),Portfolio!B56,"") -> 10000 | C60: =IF(ISNUMBER(Portfolio!C56),Portfolio!C56,"") -> 0.013 | D60: =IF(ISNUMBER(Portfolio!P56),Portfolio!P56,"") -> 10876 | E60: =IF(ISNUMBER(A60),DATE(YEAR(B$4),MONTH(B$4)+6+MOD(MONTH(A60),6)-MOD(MONTH(B$4),6)+IF(MOD(MONTH(A60),6)<5,6,0),DAY(B$4)),"") -> 2025-11-01 | F60: =IF(ISNUMBER(A60),DATE(YEAR(A60)+30,MONTH(A60),DAY(A60)),"") -> 2053-11-01 | G60: =IF(ISNUMBER(A60),YEAR(F60),"") -> 2053 | H60: =IF(ISNUMBER(A60),YEAR(F60)-YEAR(E60)+(MONTH(F60)-MONTH(E60))/12,"") -> 28 | I60: =IF(ISNUMBER(A60),ROUND(C60+B$5+C60*(B$5/2),4),"") -> 0.0331 | J60: =IF(ISNUMBER(A60),ROUND(D60*(1+I60/2)^(H60*2),0),"") -> 27270 | K60: =IF(ISNUMBER(A60),J60-B60,"") -> 17270 | M60: =RIGHT(" "&ROW(A60),3)&RIGHT(A$1&TEXT(A60,A$2),A$3)&RIGHT(A$1&TEXT(B60,B$2),B$3)&RIGHT(A$1&TEXT(C60,C$2),C$3)&RIGHT(A$1&TEXT(D60,D$2),D$3)&RIGHT(A$1&TEXT(E60,E$2),E$3)&RIGHT(A$1&TEXT(F60,F$2),F$3)&RIGHT(A$1&TEXT(G60,G$2),G$3)&RIGHT(A$1&TEXT(H60,H$2),H$3)&RIGHT(A$1&TEXT(I60,I$2),I$3)&RIGHT(A$1&TEXT(J60,J$2),J$3)&RIGHT(A$1&TEXT(K60,K$2),K$3) -> 60 11/2023 10,000 1.3% 10,876.00 11/2025 11/2053 2053 28.0 3.31% 27,270 17,270
A61: =IF(ISNUMBER(Portfolio!A57),Portfolio!A57,"") -> 2024-05-01 | B61: =IF(ISNUMBER(Portfolio!B57),Portfolio!B57,"") -> 10000 | C61: =IF(ISNUMBER(Portfolio!C57),Portfolio!C57,"") -> 0.013 | D61: =IF(ISNUMBER(Portfolio!P57),Portfolio!P57,"") -> 10596 | E61: =IF(ISNUMBER(A61),DATE(YEAR(B$4),MONTH(B$4)+6+MOD(MONTH(A61),6)-MOD(MONTH(B$4),6)+IF(MOD(MONTH(A61),6)<5,6,0),DAY(B$4)),"") -> 2025-11-01 | F61: =IF(ISNUMBER(A61),DATE(YEAR(A61)+30,MONTH(A61),DAY(A61)),"") -> 2054-05-01 | G61: =IF(ISNUMBER(A61),YEAR(F61),"") -> 2054 | H61: =IF(ISNUMBER(A61),YEAR(F61)-YEAR(E61)+(MONTH(F61)-MONTH(E61))/12,"") -> 28.5 | I61: =IF(ISNUMBER(A61),ROUND(C61+B$5+C61*(B$5/2),4),"") -> 0.0331 | J61: =IF(ISNUMBER(A61),ROUND(D61*(1+I61/2)^(H61*2),0),"") -> 27007 | K61: =IF(ISNUMBER(A61),J61-B61,"") -> 17007 | M61: =RIGHT(" "&ROW(A61),3)&RIGHT(A$1&TEXT(A61,A$2),A$3)&RIGHT(A$1&TEXT(B61,B$2),B$3)&RIGHT(A$1&TEXT(C61,C$2),C$3)&RIGHT(A$1&TEXT(D61,D$2),D$3)&RIGHT(A$1&TEXT(E61,E$2),E$3)&RIGHT(A$1&TEXT(F61,F$2),F$3)&RIGHT(A$1&TEXT(G61,G$2),G$3)&RIGHT(A$1&TEXT(H61,H$2),H$3)&RIGHT(A$1&TEXT(I61,I$2),I$3)&RIGHT(A$1&TEXT(J61,J$2),J$3)&RIGHT(A$1&TEXT(K61,K$2),K$3) -> 61 5/2024 10,000 1.3% 10,596.00 11/2025 5/2054 2054 28.5 3.31% 27,007 17,007
A62: =IF(ISNUMBER(Portfolio!A58),Portfolio!A58,"") -> 2024-11-01 | B62: =IF(ISNUMBER(Portfolio!B58),Portfolio!B58,"") -> 10000 | C62: =IF(ISNUMBER(Portfolio!C58),Portfolio!C58,"") -> 0.012 | D62: =IF(ISNUMBER(Portfolio!P58),Portfolio!P58,"") -> 10364 | E62: =IF(ISNUMBER(A62),DATE(YEAR(B$4),MONTH(B$4)+6+MOD(MONTH(A62),6)-MOD(MONTH(B$4),6)+IF(MOD(MONTH(A62),6)<5,6,0),DAY(B$4)),"") -> 2025-11-01 | F62: =IF(ISNUMBER(A62),DATE(YEAR(A62)+30,MONTH(A62),DAY(A62)),"") -> 2054-11-01 | G62: =IF(ISNUMBER(A62),YEAR(F62),"") -> 2054 | H62: =IF(ISNUMBER(A62),YEAR(F62)-YEAR(E62)+(MONTH(F62)-MONTH(E62))/12,"") -> 29 | I62: =IF(ISNUMBER(A62),ROUND(C62+B$5+C62*(B$5/2),4),"") -> 0.0321 | J62: =IF(ISNUMBER(A62),ROUND(D62*(1+I62/2)^(H62*2),0),"") -> 26098 | K62: =IF(ISNUMBER(A62),J62-B62,"") -> 16098 | M62: =RIGHT(" "&ROW(A62),3)&RIGHT(A$1&TEXT(A62,A$2),A$3)&RIGHT(A$1&TEXT(B62,B$2),B$3)&RIGHT(A$1&TEXT(C62,C$2),C$3)&RIGHT(A$1&TEXT(D62,D$2),D$3)&RIGHT(A$1&TEXT(E62,E$2),E$3)&RIGHT(A$1&TEXT(F62,F$2),F$3)&RIGHT(A$1&TEXT(G62,G$2),G$3)&RIGHT(A$1&TEXT(H62,H$2),H$3)&RIGHT(A$1&TEXT(I62,I$2),I$3)&RIGHT(A$1&TEXT(J62,J$2),J$3)&RIGHT(A$1&TEXT(K62,K$2),K$3) -> 62 11/2024 10,000 1.2% 10,364.00 11/2025 11/2054 2054 29.0 3.21% 26,098 16,098
A63: =IF(ISNUMBER(Portfolio!A59),Portfolio!A59,"") -> 2025-05-01 | B63: =IF(ISNUMBER(Portfolio!B59),Portfolio!B59,"") -> 10000 | C63: =IF(ISNUMBER(Portfolio!C59),Portfolio!C59,"") -> 0.011 | D63: =IF(ISNUMBER(Portfolio!P59),Portfolio!P59,"") -> 10200 | E63: =IF(ISNUMBER(A63),DATE(YEAR(B$4),MONTH(B$4)+6+MOD(MONTH(A63),6)-MOD(MONTH(B$4),6)+IF(MOD(MONTH(A63),6)<5,6,0),DAY(B$4)),"") -> 2025-11-01 | F63: =IF(ISNUMBER(A63),DATE(YEAR(A63)+30,MONTH(A63),DAY(A63)),"") -> 2055-05-01 | G63: =IF(ISNUMBER(A63),YEAR(F63),"") -> 2055 | H63: =IF(ISNUMBER(A63),YEAR(F63)-YEAR(E63)+(MONTH(F63)-MONTH(E63))/12,"") -> 29.5 | I63: =IF(ISNUMBER(A63),ROUND(C63+B$5+C63*(B$5/2),4),"") -> 0.0311 | J63: =IF(ISNUMBER(A63),ROUND(D63*(1+I63/2)^(H63*2),0),"") -> 25350 | K63: =IF(ISNUMBER(A63),J63-B63,"") -> 15350 | M63: =RIGHT(" "&ROW(A63),3)&RIGHT(A$1&TEXT(A63,A$2),A$3)&RIGHT(A$1&TEXT(B63,B$2),B$3)&RIGHT(A$1&TEXT(C63,C$2),C$3)&RIGHT(A$1&TEXT(D63,D$2),D$3)&RIGHT(A$1&TEXT(E63,E$2),E$3)&RIGHT(A$1&TEXT(F63,F$2),F$3)&RIGHT(A$1&TEXT(G63,G$2),G$3)&RIGHT(A$1&TEXT(H63,H$2),H$3)&RIGHT(A$1&TEXT(I63,I$2),I$3)&RIGHT(A$1&TEXT(J63,J$2),J$3)&RIGHT(A$1&TEXT(K63,K$2),K$3) -> 63 5/2025 10,000 1.1% 10,200.00 11/2025 5/2055 2055 29.5 3.11% 25,350 15,350

Sheet MatYrs
B1: 9 | C1: 14 | D1: 11 | E1: 11
B2: Face | C2: Now | D2: Grows | G2: =RIGHT(" "&ROW(A2),3)&RIGHT(A$1&A2,7)&RIGHT(A$1&B2,B$1)&RIGHT(A$1&C2,C$1)&RIGHT(A$1&D2,D$1)&RIGHT(A$1&E2,E$1) -> 2 Face Now Grows
A3: Year | B3: Value | C3: Worth | D3: To | E3: Gain | G3: =RIGHT(" "&ROW(A3),3)&RIGHT(A$1&A3,7)&RIGHT(A$1&B3,B$1)&RIGHT(A$1&C3,C$1)&RIGHT(A$1&D3,D$1)&RIGHT(A$1&E3,E$1) -> 3 Year Value Worth To Gain
A4: Sum | B4: =SUM(B5:B100) -> 550000 | C4: =SUM(C5:C100) -> 1089964 | D4: =SUM(D5:D100) -> 1556987 | E4: =SUM(E5:E100) -> 1006987 | G4: =RIGHT(" "&ROW(A4),3)&RIGHT(A$1&A4,7)&IF(B4=0,"",RIGHT(A$1&TEXT(B4,"#,###,##0"),B$1)&RIGHT(A$1&TEXT(C4,"#,###,##0.00"),C$1)&RIGHT(A$1&TEXT(D4,"#,###,##0"),D$1)&RIGHT(A$1&TEXT(E4,"#,###,##0"),E$1)) -> 4 Sum 550,000 1,089,964.00 1,556,987 1,006,987
A5: =YEAR(MIN(Portfolio!A5:A1000))+30 -> 2028 | B5: =IF(ISNUMBER($A5),SUMIF(Mature!$G$5:G$1000,$A5,Mature!B$5:B$1000),"") -> 20000 | C5: =IF(ISNUMBER($A5),SUMIF(Mature!$G$5:I$1000,$A5,Mature!D$5:D$1000),"") -> 98256 | D5: =IF(ISNUMBER($A5),SUMIF(Mature!$G$5:J$1000,$A5,Mature!J$5:J$1000),"") -> 113674 | E5: =IF(ISNUMBER($A5),SUMIF(Mature!$G$5:K$1000,$A5,Mature!K$5:K$1000),"") -> 93674 | G5: =RIGHT(" "&ROW(A5),3)&RIGHT(A$1&A5,7)&IF(B5=0,"",RIGHT(A$1&TEXT(B5,"#,###,##0"),B$1)&RIGHT(A$1&TEXT(C5,"#,###,##0.00"),C$1)&RIGHT(A$1&TEXT(D5,"#,###,##0"),D$1)&RIGHT(A$1&TEXT(E5,"#,###,##0"),E$1)) -> 5 2028 20,000 98,256.00 113,674 93,674
A6: =IF(A5="","",IF(A5+1<=YEAR(MAX(Portfolio!A$5:A$1000))+30,A5+1,"")) -> 2029 | B6: =IF(ISNUMBER($A6),SUMIF(Mature!$G$5:G$1000,$A6,Mature!B$5:B$1000),"") -> 20000 | C6: =IF(ISNUMBER($A6),SUMIF(Mature!$G$5:I$1000,$A6,Mature!D$5:D$1000),"") -> 94236 | D6: =IF(ISNUMBER($A6),SUMIF(Mature!$G$5:J$1000,$A6,Mature!J$5:J$1000),"") -> 115021 | E6: =IF(ISNUMBER($A6),SUMIF(Mature!$G$5:K$1000,$A6,Mature!K$5:K$1000),"") -> 95021 | G6: 6 2029 20,000 94,236.00 115,021 95,021
A7: =IF(A6="","",IF(A6+1<=YEAR(MAX(Portfolio!A$5:A$1000))+30,A6+1,"")) -> 2030 | B7: =IF(ISNUMBER($A7),SUMIF(Mature!$G$5:G$1000,$A7,Mature!B$5:B$1000),"") -> 20000 | C7: =IF(ISNUMBER($A7),SUMIF(Mature!$G$5:I$1000,$A7,Mature!D$5:D$1000),"") -> 91752 | D7: =IF(ISNUMBER($A7),SUMIF(Mature!$G$5:J$1000,$A7,Mature!J$5:J$1000),"") -> 118847 | E7: =IF(ISNUMBER($A7),SUMIF(Mature!$G$5:K$1000,$A7,Mature!K$5:K$1000),"") -> 98847 | G7: 7 2030 20,000 91,752.00 118,847 98,847
A8: =IF(A7="","",IF(A7+1<=YEAR(MAX(Portfolio!A$5:A$1000))+30,A7+1,"")) -> 2031 | B8: =IF(ISNUMBER($A8),SUMIF(Mature!$G$5:G$1000,$A8,Mature!B$5:B$1000),"") -> 20000 | C8: =IF(ISNUMBER($A8),SUMIF(Mature!$G$5:I$1000,$A8,Mature!D$5:D$1000),"") -> 68508 | D8: =IF(ISNUMBER($A8),SUMIF(Mature!$G$5:J$1000,$A8,Mature!J$5:J$1000),"") -> 88708 | E8: =IF(ISNUMBER($A8),SUMIF(Mature!$G$5:K$1000,$A8,Mature!K$5:K$1000),"") -> 68708 | G8: 8 2031 20,000 68,508.00 88,708 68,708
A9: =IF(A8="","",IF(A8+1<=YEAR(MAX(Portfolio!A$5:A$1000))+30,A8+1,"")) -> 2032 | B9: =IF(ISNUMBER($A9),SUMIF(Mature!$G$5:G$1000,$A9,Mature!B$5:B$1000),"") -> 20000 | C9: =IF(ISNUMBER($A9),SUMIF(Mature!$G$5:I$1000,$A9,Mature!D$5:D$1000),"") -> 55512 | D9: =IF(ISNUMBER($A9),SUMIF(Mature!$G$5:J$1000,$A9,Mature!J$5:J$1000),"") -> 71645 | E9: =IF(ISNUMBER($A9),SUMIF(Mature!$G$5:K$1000,$A9,Mature!K$5:K$1000),"") -> 51645 | G9: 9 2032 20,000 55,512.00 71,645 51,645
A10: =IF(A9="","",IF(A9+1<=YEAR(MAX(Portfolio!A$5:A$1000))+30,A9+1,"")) -> 2033 | B10: =IF(ISNUMBER($A10),SUMIF(Mature!$G$5:G$1000,$A10,Mature!B$5:B$1000),"") -> 20000 | C10: =IF(ISNUMBER($A10),SUMIF(Mature!$G$5:I$1000,$A10,Mature!D$5:D$1000),"") -> 45884 | D10: =IF(ISNUMBER($A10),SUMIF(Mature!$G$5:J$1000,$A10,Mature!J$5:J$1000),"") -> 58278 | E10: =IF(ISNUMBER($A10),SUMIF(Mature!$G$5:K$1000,$A10,Mature!K$5:K$1000),"") -> 38278 | G10: 10 2033 20,000 45,884.00 58,278 38,278
A11: =IF(A10="","",IF(A10+1<=YEAR(MAX(Portfolio!A$5:A$1000))+30,A10+1,"")) -> 2034 | B11: =IF(ISNUMBER($A11),SUMIF(Mature!$G$5:G$1000,$A11,Mature!B$5:B$1000),"") -> 20000 | C11: =IF(ISNUMBER($A11),SUMIF(Mature!$G$5:I$1000,$A11,Mature!D$5:D$1000),"") -> 43608 | D11: =IF(ISNUMBER($A11),SUMIF(Mature!$G$5:J$1000,$A11,Mature!J$5:J$1000),"") -> 56634 | E11: =IF(ISNUMBER($A11),SUMIF(Mature!$G$5:K$1000,$A11,Mature!K$5:K$1000),"") -> 36634 | G11: 11 2034 20,000 43,608.00 56,634 36,634
A12: =IF(A11="","",IF(A11+1<=YEAR(MAX(Portfolio!A$5:A$1000))+30,A11+1,"")) -> 2035 | B12: =IF(ISNUMBER($A12),SUMIF(Mature!$G$5:G$1000,$A12,Mature!B$5:B$1000),"") -> 20000 | C12: =IF(ISNUMBER($A12),SUMIF(Mature!$G$5:I$1000,$A12,Mature!D$5:D$1000),"") -> 42808 | D12: =IF(ISNUMBER($A12),SUMIF(Mature!$G$5:J$1000,$A12,Mature!J$5:J$1000),"") -> 57826 | E12: =IF(ISNUMBER($A12),SUMIF(Mature!$G$5:K$1000,$A12,Mature!K$5:K$1000),"") -> 37826 | G12: 12 2035 20,000 42,808.00 57,826 37,826
A13: =IF(A12="","",IF(A12+1<=YEAR(MAX(Portfolio!A$5:A$1000))+30,A12+1,"")) -> 2036 | B13: =IF(ISNUMBER($A13),SUMIF(Mature!$G$5:G$1000,$A13,Mature!B$5:B$1000),"") -> 20000 | C13: =IF(ISNUMBER($A13),SUMIF(Mature!$G$5:I$1000,$A13,Mature!D$5:D$1000),"") -> 42944 | D13: =IF(ISNUMBER($A13),SUMIF(Mature!$G$5:J$1000,$A13,Mature!J$5:J$1000),"") -> 61767 | E13: =IF(ISNUMBER($A13),SUMIF(Mature!$G$5:K$1000,$A13,Mature!K$5:K$1000),"") -> 41767 | G13: 13 2036 20,000 42,944.00 61,767 41,767
A14: =IF(A13="","",IF(A13+1<=YEAR(MAX(Portfolio!A$5:A$1000))+30,A13+1,"")) -> 2037 | B14: =IF(ISNUMBER($A14),SUMIF(Mature!$G$5:G$1000,$A14,Mature!B$5:B$1000),"") -> 20000 | C14: =IF(ISNUMBER($A14),SUMIF(Mature!$G$5:I$1000,$A14,Mature!D$5:D$1000),"") -> 40300 | D14: =IF(ISNUMBER($A14),SUMIF(Mature!$G$5:J$1000,$A14,Mature!J$5:J$1000),"") -> 58918 | E14: =IF(ISNUMBER($A14),SUMIF(Mature!$G$5:K$1000,$A14,Mature!K$5:K$1000),"") -> 38918 | G14: 14 2037 20,000 40,300.00 58,918 38,918
A15: =IF(A14="","",IF(A14+1<=YEAR(MAX(Portfolio!A$5:A$1000))+30,A14+1,"")) -> 2038 | B15: =IF(ISNUMBER($A15),SUMIF(Mature!$G$5:G$1000,$A15,Mature!B$5:B$1000),"") -> 20000 | C15: =IF(ISNUMBER($A15),SUMIF(Mature!$G$5:I$1000,$A15,Mature!D$5:D$1000),"") -> 33288 | D15: =IF(ISNUMBER($A15),SUMIF(Mature!$G$5:J$1000,$A15,Mature!J$5:J$1000),"") -> 45061 | E15: =IF(ISNUMBER($A15),SUMIF(Mature!$G$5:K$1000,$A15,Mature!K$5:K$1000),"") -> 25061 | G15: 15 2038 20,000 33,288.00 45,061 25,061
A16: =IF(A15="","",IF(A15+1<=YEAR(MAX(Portfolio!A$5:A$1000))+30,A15+1,"")) -> 2039 | B16: =IF(ISNUMBER($A16),SUMIF(Mature!$G$5:G$1000,$A16,Mature!B$5:B$1000),"") -> 20000 | C16: =IF(ISNUMBER($A16),SUMIF(Mature!$G$5:I$1000,$A16,Mature!D$5:D$1000),"") -> 31276 | D16: =IF(ISNUMBER($A16),SUMIF(Mature!$G$5:J$1000,$A16,Mature!J$5:J$1000),"") -> 42283 | E16: =IF(ISNUMBER($A16),SUMIF(Mature!$G$5:K$1000,$A16,Mature!K$5:K$1000),"") -> 22283 | G16: 16 2039 20,000 31,276.00 42,283 22,283
A17: =IF(A16="","",IF(A16+1<=YEAR(MAX(Portfolio!A$5:A$1000))+30,A16+1,"")) -> 2040 | B17: =IF(ISNUMBER($A17),SUMIF(Mature!$G$5:G$1000,$A17,Mature!B$5:B$1000),"") -> 20000 | C17: =IF(ISNUMBER($A17),SUMIF(Mature!$G$5:I$1000,$A17,Mature!D$5:D$1000),"") -> 30204 | D17: =IF(ISNUMBER($A17),SUMIF(Mature!$G$5:J$1000,$A17,Mature!J$5:J$1000),"") -> 41103 | E17: =IF(ISNUMBER($A17),SUMIF(Mature!$G$5:K$1000,$A17,Mature!K$5:K$1000),"") -> 21103 | G17: 17 2040 20,000 30,204.00 41,103 21,103
A18: =IF(A17="","",IF(A17+1<=YEAR(MAX(Portfolio!A$5:A$1000))+30,A17+1,"")) -> 2041 | B18: =IF(ISNUMBER($A18),SUMIF(Mature!$G$5:G$1000,$A18,Mature!B$5:B$1000),"") -> 20000 | C18: =IF(ISNUMBER($A18),SUMIF(Mature!$G$5:I$1000,$A18,Mature!D$5:D$1000),"") -> 29200 | D18: =IF(ISNUMBER($A18),SUMIF(Mature!$G$5:J$1000,$A18,Mature!J$5:J$1000),"") -> 39948 | E18: =IF(ISNUMBER($A18),SUMIF(Mature!$G$5:K$1000,$A18,Mature!K$5:K$1000),"") -> 19948 | G18: 18 2041 20,000 29,200.00 39,948 19,948
A19: =IF(A18="","",IF(A18+1<=YEAR(MAX(Portfolio!A$5:A$1000))+30,A18+1,"")) -> 2042 | B19: =IF(ISNUMBER($A19),SUMIF(Mature!$G$5:G$1000,$A19,Mature!B$5:B$1000),"") -> 20000 | C19: =IF(ISNUMBER($A19),SUMIF(Mature!$G$5:I$1000,$A19,Mature!D$5:D$1000),"") -> 28276 | D19: =IF(ISNUMBER($A19),SUMIF(Mature!$G$5:J$1000,$A19,Mature!J$5:J$1000),"") -> 39462 | E19: =IF(ISNUMBER($A19),SUMIF(Mature!$G$5:K$1000,$A19,Mature!K$5:K$1000),"") -> 19462 | G19: 19 2042 20,000 28,276.00 39,462 19,462
A20: =IF(A19="","",IF(A19+1<=YEAR(MAX(Portfolio!A$5:A$1000))+30,A19+1,"")) -> 2043 | B20: =IF(ISNUMBER($A20),SUMIF(Mature!$G$5:G$1000,$A20,Mature!B$5:B$1000),"") -> 20000 | C20: =IF(ISNUMBER($A20),SUMIF(Mature!$G$5:I$1000,$A20,Mature!D$5:D$1000),"") -> 28120 | D20: =IF(ISNUMBER($A20),SUMIF(Mature!$G$5:J$1000,$A20,Mature!J$5:J$1000),"") -> 40771 | E20: =IF(ISNUMBER($A20),SUMIF(Mature!$G$5:K$1000,$A20,Mature!K$5:K$1000),"") -> 20771 | G20: 20 2043 20,000 28,120.00 40,771 20,771
A21: =IF(A20="","",IF(A20+1<=YEAR(MAX(Portfolio!A$5:A$1000))+30,A20+1,"")) -> 2044 | B21: =IF(ISNUMBER($A21),SUMIF(Mature!$G$5:G$1000,$A21,Mature!B$5:B$1000),"") -> 20000 | C21: =IF(ISNUMBER($A21),SUMIF(Mature!$G$5:I$1000,$A21,Mature!D$5:D$1000),"") -> 27572 | D21: =IF(ISNUMBER($A21),SUMIF(Mature!$G$5:J$1000,$A21,Mature!J$5:J$1000),"") -> 40413 | E21: =IF(ISNUMBER($A21),SUMIF(Mature!$G$5:K$1000,$A21,Mature!K$5:K$1000),"") -> 20413 | G21: 21 2044 20,000 27,572.00 40,413 20,413
A22: =IF(A21="","",IF(A21+1<=YEAR(MAX(Portfolio!A$5:A$1000))+30,A21+1,"")) -> 2045 | B22: =IF(ISNUMBER($A22),SUMIF(Mature!$G$5:G$1000,$A22,Mature!B$5:B$1000),"") -> 20000 | C22: =IF(ISNUMBER($A22),SUMIF(Mature!$G$5:I$1000,$A22,Mature!D$5:D$1000),"") -> 27220 | D22: =IF(ISNUMBER($A22),SUMIF(Mature!$G$5:J$1000,$A22,Mature!J$5:J$1000),"") -> 40734 | E22: =IF(ISNUMBER($A22),SUMIF(Mature!$G$5:K$1000,$A22,Mature!K$5:K$1000),"") -> 20734 | G22: 22 2045 20,000 27,220.00 40,734 20,734
A23: =IF(A22="","",IF(A22+1<=YEAR(MAX(Portfolio!A$5:A$1000))+30,A22+1,"")) -> 2046 | B23: =IF(ISNUMBER($A23),SUMIF(Mature!$G$5:G$1000,$A23,Mature!B$5:B$1000),"") -> 20000 | C23: =IF(ISNUMBER($A23),SUMIF(Mature!$G$5:I$1000,$A23,Mature!D$5:D$1000),"") -> 27004 | D23: =IF(ISNUMBER($A23),SUMIF(Mature!$G$5:J$1000,$A23,Mature!J$5:J$1000),"") -> 41227 | E23: =IF(ISNUMBER($A23),SUMIF(Mature!$G$5:K$1000,$A23,Mature!K$5:K$1000),"") -> 21227 | G23: 23 2046 20,000 27,004.00 41,227 21,227
A24: =IF(A23="","",IF(A23+1<=YEAR(MAX(Portfolio!A$5:A$1000))+30,A23+1,"")) -> 2047 | B24: =IF(ISNUMBER($A24),SUMIF(Mature!$G$5:G$1000,$A24,Mature!B$5:B$1000),"") -> 20000 | C24: =IF(ISNUMBER($A24),SUMIF(Mature!$G$5:I$1000,$A24,Mature!D$5:D$1000),"") -> 26468 | D24: =IF(ISNUMBER($A24),SUMIF(Mature!$G$5:J$1000,$A24,Mature!J$5:J$1000),"") -> 41255 | E24: =IF(ISNUMBER($A24),SUMIF(Mature!$G$5:K$1000,$A24,Mature!K$5:K$1000),"") -> 21255 | G24: 24 2047 20,000 26,468.00 41,255 21,255
A25: =IF(A24="","",IF(A24+1<=YEAR(MAX(Portfolio!A$5:A$1000))+30,A24+1,"")) -> 2048 | B25: =IF(ISNUMBER($A25),SUMIF(Mature!$G$5:G$1000,$A25,Mature!B$5:B$1000),"") -> 20000 | C25: =IF(ISNUMBER($A25),SUMIF(Mature!$G$5:I$1000,$A25,Mature!D$5:D$1000),"") -> 26524 | D25: =IF(ISNUMBER($A25),SUMIF(Mature!$G$5:J$1000,$A25,Mature!J$5:J$1000),"") -> 45725 | E25: =IF(ISNUMBER($A25),SUMIF(Mature!$G$5:K$1000,$A25,Mature!K$5:K$1000),"") -> 25725 | G25: 25 2048 20,000 26,524.00 45,725 25,725
A26: =IF(A25="","",IF(A25+1<=YEAR(MAX(Portfolio!A$5:A$1000))+30,A25+1,"")) -> 2049 | B26: =IF(ISNUMBER($A26),SUMIF(Mature!$G$5:G$1000,$A26,Mature!B$5:B$1000),"") -> 20000 | C26: =IF(ISNUMBER($A26),SUMIF(Mature!$G$5:I$1000,$A26,Mature!D$5:D$1000),"") -> 25820 | D26: =IF(ISNUMBER($A26),SUMIF(Mature!$G$5:J$1000,$A26,Mature!J$5:J$1000),"") -> 45045 | E26: =IF(ISNUMBER($A26),SUMIF(Mature!$G$5:K$1000,$A26,Mature!K$5:K$1000),"") -> 25045 | G26: 26 2049 20,000 25,820.00 45,045 25,045
A27: =IF(A26="","",IF(A26+1<=YEAR(MAX(Portfolio!A$5:A$1000))+30,A26+1,"")) -> 2050 | B27: =IF(ISNUMBER($A27),SUMIF(Mature!$G$5:G$1000,$A27,Mature!B$5:B$1000),"") -> 20000 | C27: =IF(ISNUMBER($A27),SUMIF(Mature!$G$5:I$1000,$A27,Mature!D$5:D$1000),"") -> 24852 | D27: =IF(ISNUMBER($A27),SUMIF(Mature!$G$5:J$1000,$A27,Mature!J$5:J$1000),"") -> 40670 | E27: =IF(ISNUMBER($A27),SUMIF(Mature!$G$5:K$1000,$A27,Mature!K$5:K$1000),"") -> 20670 | G27: 27 2050 20,000 24,852.00 40,670 20,670
A28: =IF(A27="","",IF(A27+1<=YEAR(MAX(Portfolio!A$5:A$1000))+30,A27+1,"")) -> 2051 | B28: =IF(ISNUMBER($A28),SUMIF(Mature!$G$5:G$1000,$A28,Mature!B$5:B$1000),"") -> 20000 | C28: =IF(ISNUMBER($A28),SUMIF(Mature!$G$5:I$1000,$A28,Mature!D$5:D$1000),"") -> 24364 | D28: =IF(ISNUMBER($A28),SUMIF(Mature!$G$5:J$1000,$A28,Mature!J$5:J$1000),"") -> 40671 | E28: =IF(ISNUMBER($A28),SUMIF(Mature!$G$5:K$1000,$A28,Mature!K$5:K$1000),"") -> 20671 | G28: =RIGHT(" "&ROW(A28),3)&RIGHT(A$1&A28,7)&IF(B28=0,"",RIGHT(A$1&TEXT(B28,"#,###,##0"),B$1)&RIGHT(A$1&TEXT(C28,"#,###,##0.00"),C$1)&RIGHT(A$1&TEXT(D28,"#,###,##0"),D$1)&RIGHT(A$1&TEXT(E28,"#,###,##0"),E$1)) -> 28 2051 20,000 24,364.00 40,671 20,671
A29: =IF(A28="","",IF(A28+1<=YEAR(MAX(Portfolio!A$5:A$1000))+30,A28+1,"")) -> 2052 | B29: =IF(ISNUMBER($A29),SUMIF(Mature!$G$5:G$1000,$A29,Mature!B$5:B$1000),"") -> 20000 | C29: =IF(ISNUMBER($A29),SUMIF(Mature!$G$5:I$1000,$A29,Mature!D$5:D$1000),"") -> 22912 | D29: =IF(ISNUMBER($A29),SUMIF(Mature!$G$5:J$1000,$A29,Mature!J$5:J$1000),"") -> 41185 | E29: =IF(ISNUMBER($A29),SUMIF(Mature!$G$5:K$1000,$A29,Mature!K$5:K$1000),"") -> 21185 | G29: =RIGHT(" "&ROW(A29),3)&RIGHT(A$1&A29,7)&IF(B29=0,"",RIGHT(A$1&TEXT(B29,"#,###,##0"),B$1)&RIGHT(A$1&TEXT(C29,"#,###,##0.00"),C$1)&RIGHT(A$1&TEXT(D29,"#,###,##0"),D$1)&RIGHT(A$1&TEXT(E29,"#,###,##0"),E$1)) -> 29 2052 20,000 22,912.00 41,185 21,185
A30: =IF(A29="","",IF(A29+1<=YEAR(MAX(Portfolio!A$5:A$1000))+30,A29+1,"")) -> 2053 | B30: =IF(ISNUMBER($A30),SUMIF(Mature!$G$5:G$1000,$A30,Mature!B$5:B$1000),"") -> 20000 | C30: =IF(ISNUMBER($A30),SUMIF(Mature!$G$5:I$1000,$A30,Mature!D$5:D$1000),"") -> 21896 | D30: =IF(ISNUMBER($A30),SUMIF(Mature!$G$5:J$1000,$A30,Mature!J$5:J$1000),"") -> 51661 | E30: =IF(ISNUMBER($A30),SUMIF(Mature!$G$5:K$1000,$A30,Mature!K$5:K$1000),"") -> 31661 | G30: =RIGHT(" "&ROW(A30),3)&RIGHT(A$1&A30,7)&IF(B30=0,"",RIGHT(A$1&TEXT(B30,"#,###,##0"),B$1)&RIGHT(A$1&TEXT(C30,"#,###,##0.00"),C$1)&RIGHT(A$1&TEXT(D30,"#,###,##0"),D$1)&RIGHT(A$1&TEXT(E30,"#,###,##0"),E$1)) -> 30 2053 20,000 21,896.00 51,661 31,661
A31: =IF(A30="","",IF(A30+1<=YEAR(MAX(Portfolio!A$5:A$1000))+30,A30+1,"")) -> 2054 | B31: =IF(ISNUMBER($A31),SUMIF(Mature!$G$5:G$1000,$A31,Mature!B$5:B$1000),"") -> 20000 | C31: =IF(ISNUMBER($A31),SUMIF(Mature!$G$5:I$1000,$A31,Mature!D$5:D$1000),"") -> 20960 | D31: =IF(ISNUMBER($A31),SUMIF(Mature!$G$5:J$1000,$A31,Mature!J$5:J$1000),"") -> 53105 | E31: =IF(ISNUMBER($A31),SUMIF(Mature!$G$5:K$1000,$A31,Mature!K$5:K$1000),"") -> 33105 | G31: =RIGHT(" "&ROW(A31),3)&RIGHT(A$1&A31,7)&IF(B31=0,"",RIGHT(A$1&TEXT(B31,"#,###,##0"),B$1)&RIGHT(A$1&TEXT(C31,"#,###,##0.00"),C$1)&RIGHT(A$1&TEXT(D31,"#,###,##0"),D$1)&RIGHT(A$1&TEXT(E31,"#,###,##0"),E$1)) -> 31 2054 20,000 20,960.00 53,105 33,105
A32: =IF(A31="","",IF(A31+1<=YEAR(MAX(Portfolio!A$5:A$1000))+30,A31+1,"")) -> 2055 | B32: =IF(ISNUMBER($A32),SUMIF(Mature!$G$5:G$1000,$A32,Mature!B$5:B$1000),"") -> 10000 | C32: =IF(ISNUMBER($A32),SUMIF(Mature!$G$5:I$1000,$A32,Mature!D$5:D$1000),"") -> 10200 | D32: =IF(ISNUMBER($A32),SUMIF(Mature!$G$5:J$1000,$A32,Mature!J$5:J$1000),"") -> 25350 | E32: =IF(ISNUMBER($A32),SUMIF(Mature!$G$5:K$1000,$A32,Mature!K$5:K$1000),"") -> 15350 | G32: =RIGHT(" "&ROW(A32),3)&RIGHT(A$1&A32,7)&IF(B32=0,"",RIGHT(A$1&TEXT(B32,"#,###,##0"),B$1)&RIGHT(A$1&TEXT(C32,"#,###,##0.00"),C$1)&RIGHT(A$1&TEXT(D32,"#,###,##0"),D$1)&RIGHT(A$1&TEXT(E32,"#,###,##0"),E$1)) -> 32 2055 10,000 10,200.00 25,350 15,350
A33: =IF(A32="","",IF(A32+1<=YEAR(MAX(Portfolio!A$5:A$1000))+30,A32+1,"")) -> 
A34: =IF(A33="","",IF(A33+1<=YEAR(MAX(Portfolio!A$5:A$1000))+30,A33+1,"")) -> 
A35: =IF(A34="","",IF(A34+1<=YEAR(MAX(Portfolio!A$5:A$1000))+30,A34+1,"")) -> 
A36: =IF(A35="","",IF(A35+1<=YEAR(MAX(Portfolio!A$5:A$1000))+30,A35+1,"")) -> 
A37: =IF(A36="","",IF(A36+1<=YEAR(MAX(Portfolio!A$5:A$1000))+30,A36+1,"")) -> 
A38: =IF(A37="","",IF(A37+1<=YEAR(MAX(Portfolio!A$5:A$1000))+30,A37+1,"")) -> 
A39: =IF(A38="","",IF(A38+1<=YEAR(MAX(Portfolio!A$5:A$1000))+30,A38+1,"")) -> 
A40: =IF(A39="","",IF(A39+1<=YEAR(MAX(Portfolio!A$5:A$1000))+30,A39+1,"")) -> 
A41: =IF(A40="","",IF(A40+1<=YEAR(MAX(Portfolio!A$5:A$1000))+30,A40+1,"")) -> 
A42: =IF(A41="","",IF(A41+1<=YEAR(MAX(Portfolio!A$5:A$1000))+30,A41+1,"")) -> 
A43: =IF(A42="","",IF(A42+1<=YEAR(MAX(Portfolio!A$5:A$1000))+30,A42+1,"")) -> 

Sheet Notes
A1: 2012-08-04 | B1: Prepared by Bob Hinkley
B2: Excel workbook for computing the value of a portfolio of I Bonds.
B3: Compute for each of twelve months for a designated year.
B4: Use an Excel macro to compute and paste the values.
B6: Instructions
C7: Select the Portfolio sheet
C8: Enter the date and amount of each I Bond purchase in columns A and B
D9: (The day of the month doesn't affect the calculation)
C10: Enter the year to display in cell C1
C11: Click the [Calculate] button at the top left
B13: Comments
C14: Total portfolio value displays in row 2
C15: The Dec vs Dec column on the right shows the interest "accrued" for the year
D16: The Jan vs Jan column shows the interest "earned" for the year
D17: Useful for taxpayers using "Method 2" for reporting interest (see link below)
C18: To see redemption value instead of full value, enter TRUE in cell E2 on Rates sheet
D19: (Redemption value excludes last 3 months interest on bonds under 5 years old)
C20: When entering your portfolio, replace the sample bonds or blank their cells in column A & B,
D21: don't attempt to delete their rows
C22: A value in bold indicates the bond's 6 month "anniversary"
C23: A value in colored italic means the month is after the last known inflation rate
D24: It carries forward the previous month's value, assuming a 0% composite rate
C25: To see the entire value history of a purchase, click the link on the far right
D26: (If the purchase amount is non-standard, the page for a $25 bond will display
D27: since the value of any other denomination is a multiple of it)
C28: To prevent accidentally overwriting formulas the Portolio sheet is protected
D29: To unprotect it, choose Tools / Protection / Unprotect Sheet (in Excel 2003)
B31: Cautions
C32: Do not delete cells that are named as these names are referenced by the macro
D33: This can happen if you delete the rows or columns that contain the named cells
D34: Note: deleting a cell is different than deleting its contents
B36: Every six months
C37: Enter the new fixed rate and inflation rate on the Rates sheet and change FALSE to TRUE
B39: To enter a portolio of more than 40 I Bonds
C40: Select and unprotect Portfolio sheet
C41: Color additional rows in columns A and B for additional bonds
D42: (Coloring is only a visual aid, it doesn't affect the calculation)
C43: Copy down the formula from the last cell in the Fixed Rate column
C44: Copy down the formulas in the Dec vs Dec and Jan vs Jan columns
C45: Reprotect the sheet - Tools / Protection / Protect Sheet
B47: Calculation References
C48: http://www.savings-bond-advisor.com/confounding-compounding-calculations/
C49: http://www.savings-bond-advisor.com/savings-bond-interest-rate-calculations/
B51: TreasuryDirect I Savings Bonds Rates & Terms and Alternative Calculators
C52: http://www.treasurydirect.gov/indiv/research/indepth/ibonds/res_ibonds_iratesandterms.htm
C53: http://www.treasurydirect.gov/indiv/tools/tools_savingsbondcalc.htm
C54: http://www.treasurydirect.gov/indiv/tools/tools_savingsbondwizard.htm
B56: IRS Discussion of Methods 1 & 2 for Reporting Savings Bond Interest
C57: http://www.irs.gov/publications/p550/ch01.html#en_US_2011_publink10009895
A59: 2012-08-05 | B59: Add option to calculate Gain instead of Value
A60: 2012-08-10 | B60: Add link to bond's history page on my web site ($25 bond when non-standard amount):
C61: http://eyebonds.info/ibonds
A62: 2012-08-17 | B62: Add preceding December and following January to allow …
B63: Add columns to subtract Dec from Dec & Jan from Jan to get one year's increase in value
B64: Add option to calculate Redemption Value instead of Full Value
B65: Remove option to calculate Gain instead of Value (confusing along with previous changes made today)
A67: 2012-08-19 | B67: correct determination of when past last known inflation rate to work when showing redemption value
B68: color values past known inflation rate as well as show in italic
B69: Add two rows at top to show total interest and interest for the month
A71: 2012-11-07 | B71: Add 0.88% Inflation Rate Effective Nov 1
A72: 2013-11-01 | B72: Update rates eff May 1 2013 & Nov 1 2013
A73: 2014-05-01 | B73: Update rates eff May 1 2014
A74: 2014-11-03 | B74: Update rates eff Nov 1 2014
A75: 2015-05-01 | B75: Update rates eff May 1 2015
A76: 2015-11-02 | B76: Update rates eff Nov 1 2015
A77: 2016-05-02 | B77: Update rates eff May 1 2016
A78: 2016-11-01 | B78: Update rates eff Nov 1 2016
A79: 2017-05-01 | B79: Update rates eff May 1 2017
A80: 2017-11-17 | B80: Update rates eff Nov 1 2017
A81: 2018-05-01 | B81: Update rates eff May 1 2018
A82: 2018-11-01 | B82: Update rates eff Nov 1 2018
A83: 2019-05-01 | B83: Update rates eff May 1 2019
A84: 2019-11-01 | B84: Update rates eff NOv 1 2020
A85: 2020-05-01 | B85: Update rates eff May 1 2020
A86: 2020-11-02 | B86: Update rates eff Nov 1 2020
A87: 2021-04-02 | B87: Add Mature sheet to estimate value of portfolio at maturity.
B88: User: Enter estimated future annual CPI increase in the yellow cell.
B89: Add MatYrs sheet to group values by maturity year.
B90: Save as .XLSM file type instead of .XLS.
A91: 2021-05-03 | B91: Update rates eff May 1 2021
A92: 2021-11-01 | B92: Update rates eff Nov 1 2021
A93: 2022-05-02 | B93: Update rates eff May 1 2022
A94: 2022-11-01 | B94: Update rates eff Nov 1 2022
A95: 2023-05-01 | B95: Update rates eff May 1 2023
A96: 2023-11-01 | B96: Update rates eff Nov 1 2023
A97: 2024-05-12 | B97: Update rates eff May 1 2024
A98: 2024-11-01 | B98: Update rates eff Nov 1 2024
A99: 2025-05-01 | B99: Update rates eff May 1 2025
